Department family,Entity,Date,Expense Type,Expense area,Supplier,Transaction number,AP Amount (�)
Department of Health,NHS Sheffield CCG,31/01/2017,C&M-PMS Baseline Adjustment,PRC DELEGATED CO-COMMISSIONING,ABBEY LANE SURGERY,15610549,"2,210.17"
Department of Health,NHS Sheffield CCG,31/01/2017,C&M-PMS Contract Value,PRC DELEGATED CO-COMMISSIONING,ABBEY LANE SURGERY,15610549,"42,132.34"
Department of Health,NHS Sheffield CCG,31/01/2017,C&M-PMS Out of Hours Opt Outs,PRC DELEGATED CO-COMMISSIONING,ABBEY LANE SURGERY,15610549,-990.71
Department of Health,NHS Sheffield CCG,31/01/2017,C&M-PMS Prem Notional Rent,PRC DELEGATED CO-COMMISSIONING,ABBEY LANE SURGERY,15610549,"2,122.92"
Department of Health,NHS Sheffield CCG,31/01/2017,C&M-PMS Prem Rates,PRC DELEGATED CO-COMMISSIONING,ABBEY LANE SURGERY,15610549,653.4
Department of Health,NHS Sheffield CCG,31/01/2017,C&M-PMS QOF Aspiration,PRC DELEGATED CO-COMMISSIONING,ABBEY LANE SURGERY,15610549,"2,925.38"
Department of Health,NHS Sheffield CCG,31/01/2017,Cont Care-Physical Disab (65+),CHC ADULT FULLY FUNDED,ABBEYCARE NURSING,15863124,"46,965.00"
Department of Health,NHS Sheffield CCG,31/01/2017,Cont Care-Physical Disab (<65),CHC ADULT FULLY FUNDED,ALPINE HEALTH CARE,15680687,"29,450.70"
Department of Health,NHS Sheffield CCG,31/01/2017,Cont Care-Funded Nursing Care Allow,FUNDED NURSING CARE,ALPINE HEALTH CARE,15680857,"28,124.85"
Department of Health,NHS Sheffield CCG,31/01/2017,Clinical&Medical-Commercial Sector,PATIENT TRANSPORT,ARRIVA TRANSPORT SOLUTIONS,15590731,"90,627.47"
Department of Health,NHS Sheffield CCG,31/01/2017,C&M-PMS Contract Value,PRC DELEGATED CO-COMMISSIONING,AVENUE MEDICAL CENTRE SHEFFIELD,15610546,"-49,606.62"
Department of Health,NHS Sheffield CCG,31/01/2017,C&M-PMS GP Statutory Levy,PRC DELEGATED CO-COMMISSIONING,AVENUE MEDICAL CENTRE SHEFFIELD,15610546,-223.5
Department of Health,NHS Sheffield CCG,31/01/2017,C&M-PMS Out of Hours Opt Outs,PRC DELEGATED CO-COMMISSIONING,AVENUE MEDICAL CENTRE SHEFFIELD,15610546,-37.44
Department of Health,NHS Sheffield CCG,31/01/2017,C&M-PMS Voluntary Levy,PRC DELEGATED CO-COMMISSIONING,AVENUE MEDICAL CENTRE SHEFFIELD,15610546,-37.25
Department of Health,NHS Sheffield CCG,31/01/2017,C&M-PMS Contract Value,PRC DELEGATED CO-COMMISSIONING,AVENUE MEDICAL CENTRE SHEFFIELD,15610547,"100,774.10"
Department of Health,NHS Sheffield CCG,31/01/2017,C&M-PMS Out of Hours Opt Outs,PRC DELEGATED CO-COMMISSIONING,AVENUE MEDICAL CENTRE SHEFFIELD,15610547,"-2,506.48"
Department of Health,NHS Sheffield CCG,31/01/2017,C&M-PMS Prem Notional Rent,PRC DELEGATED CO-COMMISSIONING,AVENUE MEDICAL CENTRE SHEFFIELD,15610547,"5,546.67"
Department of Health,NHS Sheffield CCG,31/01/2017,C&M-PMS Prem Rates,PRC DELEGATED CO-COMMISSIONING,AVENUE MEDICAL CENTRE SHEFFIELD,15610547,"2,360.75"
Department of Health,NHS Sheffield CCG,31/01/2017,C&M-PMS QOF Aspiration,PRC DELEGATED CO-COMMISSIONING,AVENUE MEDICAL CENTRE SHEFFIELD,15610547,"5,869.92"
Department of Health,NHS Sheffield CCG,31/01/2017,Hcare Srv Rec Fdtn Trust-Contract Baseline,ACUTE COMMISSIONING,BARNSLEY HOSPITAL NHS FOUNDATION TRUST,15590515,"72,863.00"
Department of Health,NHS Sheffield CCG,31/01/2017,C&M-PMS Baseline Adjustment,PRC DELEGATED CO-COMMISSIONING,BARNSLEY ROAD SURGERY,15610551,740.67
Department of Health,NHS Sheffield CCG,31/01/2017,C&M-PMS Contract Value,PRC DELEGATED CO-COMMISSIONING,BARNSLEY ROAD SURGERY,15610551,"41,182.61"
Department of Health,NHS Sheffield CCG,31/01/2017,C&M-PMS Prem Notional Rent,PRC DELEGATED CO-COMMISSIONING,BARNSLEY ROAD SURGERY,15610551,"2,652.17"
Department of Health,NHS Sheffield CCG,31/01/2017,C&M-PMS Prem Rates,PRC DELEGATED CO-COMMISSIONING,BARNSLEY ROAD SURGERY,15610551,738.1
Department of Health,NHS Sheffield CCG,31/01/2017,C&M-PMS QOF Aspiration,PRC DELEGATED CO-COMMISSIONING,BARNSLEY ROAD SURGERY,15610551,"2,255.94"
Department of Health,NHS Sheffield CCG,31/01/2017,C&M-GMS Cost of Drugs -Prescribing,LOCAL ENHANCED SERVICES,BASLOW ROAD & SHOREHAM STREET SURGERIES,15848044,"7,619.81"
Department of Health,NHS Sheffield CCG,31/01/2017,C&M-GMS DES Learn Dsblty Hlth Chk,PRC DELEGATED CO-COMMISSIONING,BASLOW ROAD & SHOREHAM STREET SURGERIES,15848044,"1,160.00"
Department of Health,NHS Sheffield CCG,31/01/2017,C&M-GMS Global Sum,PRC DELEGATED CO-COMMISSIONING,BASLOW ROAD & SHOREHAM STREET SURGERIES,15848044,"87,412.51"
Department of Health,NHS Sheffield CCG,31/01/2017,C&M-GMS MPIG Correction Factor,PRC DELEGATED CO-COMMISSIONING,BASLOW ROAD & SHOREHAM STREET SURGERIES,15848044,584.85
Department of Health,NHS Sheffield CCG,31/01/2017,C&M-GMS Prem Notional Rent,PRC DELEGATED CO-COMMISSIONING,BASLOW ROAD & SHOREHAM STREET SURGERIES,15848044,"8,444.59"
Department of Health,NHS Sheffield CCG,31/01/2017,C&M-GMS Prem Rates,PRC DELEGATED CO-COMMISSIONING,BASLOW ROAD & SHOREHAM STREET SURGERIES,15848044,"1,877.48"
Department of Health,NHS Sheffield CCG,31/01/2017,C&M-GMS Prof Fees Prescribing,PRC DELEGATED CO-COMMISSIONING,BASLOW ROAD & SHOREHAM STREET SURGERIES,15848044,"2,176.70"
Department of Health,NHS Sheffield CCG,31/01/2017,C&M-GMS QOF Aspiration,PRC DELEGATED CO-COMMISSIONING,BASLOW ROAD & SHOREHAM STREET SURGERIES,15848044,"9,331.34"
Department of Health,NHS Sheffield CCG,31/01/2017,Cont Care-Physical Disab (65+),CHC ADULT FULLY FUNDED,BC SHEFFIELD LTD,15863120,"33,370.03"
Department of Health,NHS Sheffield CCG,31/01/2017,C&M-PMS Contract Value,PRC DELEGATED CO-COMMISSIONING,BIRLEY HEALTH CENTRE,15610552,"-57,303.08"
Department of Health,NHS Sheffield CCG,31/01/2017,C&M-PMS GP Statutory Levy,PRC DELEGATED CO-COMMISSIONING,BIRLEY HEALTH CENTRE,15610552,-253.68
Department of Health,NHS Sheffield CCG,31/01/2017,C&M-PMS Out of Hours Opt Outs,PRC DELEGATED CO-COMMISSIONING,BIRLEY HEALTH CENTRE,15610552,-85.69
Department of Health,NHS Sheffield CCG,31/01/2017,C&M-PMS Voluntary Levy,PRC DELEGATED CO-COMMISSIONING,BIRLEY HEALTH CENTRE,15610552,-42.28
Department of Health,NHS Sheffield CCG,31/01/2017,ME - PMS TPS Added Years Adj EEs,PRC DELEGATED CO-COMMISSIONING,BIRLEY HEALTH CENTRE,15610552,-434.78
Department of Health,NHS Sheffield CCG,31/01/2017,C&M-PMS Baseline Adjustment,PRC DELEGATED CO-COMMISSIONING,BIRLEY HEALTH CENTRE,15610553,"5,306.08"
Department of Health,NHS Sheffield CCG,31/01/2017,C&M-PMS Contract Value,PRC DELEGATED CO-COMMISSIONING,BIRLEY HEALTH CENTRE,15610553,"115,362.18"
Department of Health,NHS Sheffield CCG,31/01/2017,C&M-PMS Out of Hours Opt Outs,PRC DELEGATED CO-COMMISSIONING,BIRLEY HEALTH CENTRE,15610553,"-2,764.83"
Department of Health,NHS Sheffield CCG,31/01/2017,C&M-PMS Prem Notional Rent,PRC DELEGATED CO-COMMISSIONING,BIRLEY HEALTH CENTRE,15610553,"7,310.42"
Department of Health,NHS Sheffield CCG,31/01/2017,C&M-PMS Prem Rates,PRC DELEGATED CO-COMMISSIONING,BIRLEY HEALTH CENTRE,15610553,"1,180.39"
Department of Health,NHS Sheffield CCG,31/01/2017,C&M-PMS QOF Aspiration,PRC DELEGATED CO-COMMISSIONING,BIRLEY HEALTH CENTRE,15610553,"8,072.81"
Department of Health,NHS Sheffield CCG,31/01/2017,Clinical&Medical-Independent Sector,ACUTE COMMISSIONING,BMI HEALTHCARE COLLECTIONS,15590701,"66,833.36"
Department of Health,NHS Sheffield CCG,31/01/2017,C&M-GMS Cost of Drugs -Prescribing,LOCAL ENHANCED SERVICES,BROOMHILL SURGERY,15848051,"3,995.64"
Department of Health,NHS Sheffield CCG,31/01/2017,C&M-GMS Global Sum,PRC DELEGATED CO-COMMISSIONING,BROOMHILL SURGERY,15848051,"56,322.82"
Department of Health,NHS Sheffield CCG,31/01/2017,C&M-GMS MPIG Correction Factor,PRC DELEGATED CO-COMMISSIONING,BROOMHILL SURGERY,15848051,"1,004.01"
Department of Health,NHS Sheffield CCG,31/01/2017,C&M-GMS Prem Cost Rent,PRC DELEGATED CO-COMMISSIONING,BROOMHILL SURGERY,15848051,"3,380.00"
Department of Health,NHS Sheffield CCG,31/01/2017,C&M-GMS Prem Notional Rent,PRC DELEGATED CO-COMMISSIONING,BROOMHILL SURGERY,15848051,"2,541.67"
Department of Health,NHS Sheffield CCG,31/01/2017,C&M-GMS Prem Rates,PRC DELEGATED CO-COMMISSIONING,BROOMHILL SURGERY,15848051,"1,950.73"
Department of Health,NHS Sheffield CCG,31/01/2017,C&M-GMS Prem Water Rates,PRC DELEGATED CO-COMMISSIONING,BROOMHILL SURGERY,15848051,119.78
Department of Health,NHS Sheffield CCG,31/01/2017,C&M-GMS Prof Fees Prescribing,PRC DELEGATED CO-COMMISSIONING,BROOMHILL SURGERY,15848051,680.62
Department of Health,NHS Sheffield CCG,31/01/2017,C&M-GMS QOF Aspiration,PRC DELEGATED CO-COMMISSIONING,BROOMHILL SURGERY,15848051,"5,942.41"
Department of Health,NHS Sheffield CCG,31/01/2017,C&M-GMS Cost of Drugs -Prescribing,LOCAL ENHANCED SERVICES,BUCHANAN ROAD SURGERY,15848047,292.43
Department of Health,NHS Sheffield CCG,31/01/2017,C&M-GMS Global Sum,PRC DELEGATED CO-COMMISSIONING,BUCHANAN ROAD SURGERY,15848047,"32,924.78"
Department of Health,NHS Sheffield CCG,31/01/2017,C&M-GMS MPIG Correction Factor,PRC DELEGATED CO-COMMISSIONING,BUCHANAN ROAD SURGERY,15848047,"2,621.02"
Department of Health,NHS Sheffield CCG,31/01/2017,C&M-GMS Prem Notional Rent,PRC DELEGATED CO-COMMISSIONING,BUCHANAN ROAD SURGERY,15848047,"2,595.83"
Department of Health,NHS Sheffield CCG,31/01/2017,C&M-GMS Prem Rates,PRC DELEGATED CO-COMMISSIONING,BUCHANAN ROAD SURGERY,15848047,944.3
Department of Health,NHS Sheffield CCG,31/01/2017,C&M-GMS Prof Fees Prescribing,PRC DELEGATED CO-COMMISSIONING,BUCHANAN ROAD SURGERY,15848047,62.54
Department of Health,NHS Sheffield CCG,31/01/2017,C&M-GMS QOF Aspiration,PRC DELEGATED CO-COMMISSIONING,BUCHANAN ROAD SURGERY,15848047,"4,134.47"
Department of Health,NHS Sheffield CCG,31/01/2017,C&M-PMS Contract Value,PRC DELEGATED CO-COMMISSIONING,BURNCROSS SURGERY,15610554,"-110,604.48"
Department of Health,NHS Sheffield CCG,31/01/2017,C&M-PMS GP Statutory Levy,PRC DELEGATED CO-COMMISSIONING,BURNCROSS SURGERY,15610554,-471
Department of Health,NHS Sheffield CCG,31/01/2017,C&M-PMS Voluntary Levy,PRC DELEGATED CO-COMMISSIONING,BURNCROSS SURGERY,15610554,-78.5
Department of Health,NHS Sheffield CCG,31/01/2017,C&M-PMS Baseline Adjustment,PRC DELEGATED CO-COMMISSIONING,BURNCROSS SURGERY,15610555,"3,296.83"
Department of Health,NHS Sheffield CCG,31/01/2017,C&M-PMS Contract Value,PRC DELEGATED CO-COMMISSIONING,BURNCROSS SURGERY,15610555,"223,345.47"
Department of Health,NHS Sheffield CCG,31/01/2017,C&M-PMS Prem Notional Rent,PRC DELEGATED CO-COMMISSIONING,BURNCROSS SURGERY,15610555,"14,058.33"
Department of Health,NHS Sheffield CCG,31/01/2017,C&M-PMS Prem Rates,PRC DELEGATED CO-COMMISSIONING,BURNCROSS SURGERY,15610555,"2,124.70"
Department of Health,NHS Sheffield CCG,31/01/2017,C&M-PMS QOF Aspiration,PRC DELEGATED CO-COMMISSIONING,BURNCROSS SURGERY,15610555,"14,166.16"
Department of Health,NHS Sheffield CCG,31/01/2017,C&M-PMS Contract Value,PRC DELEGATED CO-COMMISSIONING,BURNGREAVE SURGERY,15610556,"-48,407.91"
Department of Health,NHS Sheffield CCG,31/01/2017,C&M-PMS GP Statutory Levy,PRC DELEGATED CO-COMMISSIONING,BURNGREAVE SURGERY,15610556,-196.86
Department of Health,NHS Sheffield CCG,31/01/2017,C&M-PMS Out of Hours Opt Outs,PRC DELEGATED CO-COMMISSIONING,BURNGREAVE SURGERY,15610556,-87.62
Department of Health,NHS Sheffield CCG,31/01/2017,C&M-PMS Voluntary Levy,PRC DELEGATED CO-COMMISSIONING,BURNGREAVE SURGERY,15610556,-32.81
Department of Health,NHS Sheffield CCG,31/01/2017,C&M-PMS Baseline Adjustment,PRC DELEGATED CO-COMMISSIONING,BURNGREAVE SURGERY,15610557,"2,706.25"
Department of Health,NHS Sheffield CCG,31/01/2017,C&M-PMS Contract Value,PRC DELEGATED CO-COMMISSIONING,BURNGREAVE SURGERY,15610557,"99,188.12"
Department of Health,NHS Sheffield CCG,31/01/2017,C&M-PMS Out of Hours Opt Outs,PRC DELEGATED CO-COMMISSIONING,BURNGREAVE SURGERY,15610557,"-2,394.78"
Department of Health,NHS Sheffield CCG,31/01/2017,C&M-PMS Prem Notional Rent,PRC DELEGATED CO-COMMISSIONING,BURNGREAVE SURGERY,15610557,"5,916.67"
Department of Health,NHS Sheffield CCG,31/01/2017,C&M-PMS Prem Rates,PRC DELEGATED CO-COMMISSIONING,BURNGREAVE SURGERY,15610557,"2,217.10"
Department of Health,NHS Sheffield CCG,31/01/2017,C&M-PMS Prem Water Rates,PRC DELEGATED CO-COMMISSIONING,BURNGREAVE SURGERY,15610557,330.32
Department of Health,NHS Sheffield CCG,31/01/2017,C&M-PMS QOF Aspiration,PRC DELEGATED CO-COMMISSIONING,BURNGREAVE SURGERY,15610557,"4,652.74"
Department of Health,NHS Sheffield CCG,31/01/2017,C&M-GMS Cost of Drugs -Prescribing,LOCAL ENHANCED SERVICES,CARTERKNOWLE & DORE MEDICAL PRACTICE,15868032,"9,406.40"
Department of Health,NHS Sheffield CCG,31/01/2017,C&M-GMS Global Sum,PRC DELEGATED CO-COMMISSIONING,CARTERKNOWLE & DORE MEDICAL PRACTICE,15868032,"75,437.36"
Department of Health,NHS Sheffield CCG,31/01/2017,C&M-GMS MPIG Correction Factor,PRC DELEGATED CO-COMMISSIONING,CARTERKNOWLE & DORE MEDICAL PRACTICE,15868032,"2,989.17"
Department of Health,NHS Sheffield CCG,31/01/2017,C&M-GMS PCO Locum Adop/Pat/Mat,PRC DELEGATED CO-COMMISSIONING,CARTERKNOWLE & DORE MEDICAL PRACTICE,15868032,"24,363.22"
Department of Health,NHS Sheffield CCG,31/01/2017,C&M-GMS Prem Notional Rent,PRC DELEGATED CO-COMMISSIONING,CARTERKNOWLE & DORE MEDICAL PRACTICE,15868032,"7,538.34"
Department of Health,NHS Sheffield CCG,31/01/2017,C&M-GMS Prof Fees Prescribing,PRC DELEGATED CO-COMMISSIONING,CARTERKNOWLE & DORE MEDICAL PRACTICE,15868032,"1,801.24"
Department of Health,NHS Sheffield CCG,31/01/2017,C&M-GMS QOF Aspiration,PRC DELEGATED CO-COMMISSIONING,CARTERKNOWLE & DORE MEDICAL PRACTICE,15868032,"8,761.41"
Department of Health,NHS Sheffield CCG,31/01/2017,C&M-GMS Cost of Drugs -Prescribing,LOCAL ENHANCED SERVICES,CHARNOCK HEALTH PRIMARY CARE CENTRE,15848053,"3,921.82"
Department of Health,NHS Sheffield CCG,31/01/2017,C&M-GMS Global Sum,PRC DELEGATED CO-COMMISSIONING,CHARNOCK HEALTH PRIMARY CARE CENTRE,15848053,"35,281.28"
Department of Health,NHS Sheffield CCG,31/01/2017,C&M-GMS MPIG Correction Factor,PRC DELEGATED CO-COMMISSIONING,CHARNOCK HEALTH PRIMARY CARE CENTRE,15848053,826.5
Department of Health,NHS Sheffield CCG,31/01/2017,C&M-GMS Prem Actual Rent,PRC DELEGATED CO-COMMISSIONING,CHARNOCK HEALTH PRIMARY CARE CENTRE,15848053,"18,300.00"
Department of Health,NHS Sheffield CCG,31/01/2017,C&M-GMS Prem Notional Rent,PRC DELEGATED CO-COMMISSIONING,CHARNOCK HEALTH PRIMARY CARE CENTRE,15848053,305
Department of Health,NHS Sheffield CCG,31/01/2017,C&M-GMS Prof Fees Prescribing,PRC DELEGATED CO-COMMISSIONING,CHARNOCK HEALTH PRIMARY CARE CENTRE,15848053,"1,094.28"
Department of Health,NHS Sheffield CCG,31/01/2017,C&M-GMS QOF Aspiration,PRC DELEGATED CO-COMMISSIONING,CHARNOCK HEALTH PRIMARY CARE CENTRE,15848053,"4,240.44"
Department of Health,NHS Sheffield CCG,31/01/2017,Hcare Srv Rec Fdtn Trust-Contract Baseline,ACUTE COMMISSIONING,CHESTERFIELD ROYAL HOSPITAL NHS FOUNDATION TRUST,15716320,"232,297.00"
Department of Health,NHS Sheffield CCG,31/01/2017,Clinical&Medical-Independent Sector,ACUTE COMMISSIONING,CLAREMONT HOSPITAL,15716313,"85,569.00"
Department of Health,NHS Sheffield CCG,31/01/2017,Cont Care-Funded Nursing Care Allow,FUNDED NURSING CARE,COUNTRY COURT CARE LTD,15680784,"28,749.83"
Department of Health,NHS Sheffield CCG,31/01/2017,C&M-GMS Cost of Drugs -Prescribing,LOCAL ENHANCED SERVICES,CROOKES PRACTICE,15848059,"2,315.57"
Department of Health,NHS Sheffield CCG,31/01/2017,C&M-GMS Global Sum,PRC DELEGATED CO-COMMISSIONING,CROOKES PRACTICE,15848059,"43,337.54"
Department of Health,NHS Sheffield CCG,31/01/2017,C&M-GMS MPIG Correction Factor,PRC DELEGATED CO-COMMISSIONING,CROOKES PRACTICE,15848059,"3,091.85"
Department of Health,NHS Sheffield CCG,31/01/2017,C&M-GMS Prem Notional Rent,PRC DELEGATED CO-COMMISSIONING,CROOKES PRACTICE,15848059,"3,752.42"
Department of Health,NHS Sheffield CCG,31/01/2017,C&M-GMS Prem Rates,PRC DELEGATED CO-COMMISSIONING,CROOKES PRACTICE,15848059,"1,615.25"
Department of Health,NHS Sheffield CCG,31/01/2017,C&M-GMS Prof Fees Prescribing,PRC DELEGATED CO-COMMISSIONING,CROOKES PRACTICE,15848059,666.19
Department of Health,NHS Sheffield CCG,31/01/2017,C&M-GMS QOF Aspiration,PRC DELEGATED CO-COMMISSIONING,CROOKES PRACTICE,15848059,"4,263.95"
Department of Health,NHS Sheffield CCG,31/01/2017,C&M-PMS Contract Value,PRC DELEGATED CO-COMMISSIONING,DEEPCAR MEDICAL CENTRE,15610560,"-33,509.60"
Department of Health,NHS Sheffield CCG,31/01/2017,C&M-PMS GP Statutory Levy,PRC DELEGATED CO-COMMISSIONING,DEEPCAR MEDICAL CENTRE,15610560,-154.2
Department of Health,NHS Sheffield CCG,31/01/2017,C&M-PMS Out of Hours Opt Outs,PRC DELEGATED CO-COMMISSIONING,DEEPCAR MEDICAL CENTRE,15610560,-53.88
Department of Health,NHS Sheffield CCG,31/01/2017,C&M-PMS Voluntary Levy,PRC DELEGATED CO-COMMISSIONING,DEEPCAR MEDICAL CENTRE,15610560,-25.7
Department of Health,NHS Sheffield CCG,31/01/2017,C&M-PMS Baseline Adjustment,PRC DELEGATED CO-COMMISSIONING,DEEPCAR MEDICAL CENTRE,15610561,612.25
Department of Health,NHS Sheffield CCG,31/01/2017,C&M-PMS Contract Value,PRC DELEGATED CO-COMMISSIONING,DEEPCAR MEDICAL CENTRE,15610561,"70,166.06"
Department of Health,NHS Sheffield CCG,31/01/2017,C&M-PMS Out of Hours Opt Outs,PRC DELEGATED CO-COMMISSIONING,DEEPCAR MEDICAL CENTRE,15610561,"-1,742.78"
Department of Health,NHS Sheffield CCG,31/01/2017,C&M-PMS Prem Healthcentre Rent,PRC DELEGATED CO-COMMISSIONING,DEEPCAR MEDICAL CENTRE,15610561,"26,323.25"
Department of Health,NHS Sheffield CCG,31/01/2017,C&M-PMS QOF Aspiration,PRC DELEGATED CO-COMMISSIONING,DEEPCAR MEDICAL CENTRE,15610561,"4,038.41"
Department of Health,NHS Sheffield CCG,31/01/2017,C&M-GMS Cost of Drugs -Prescribing,LOCAL ENHANCED SERVICES,DEVONSHIRE GREEN MEDICAL CENTRE,15848064,"1,675.93"
Department of Health,NHS Sheffield CCG,31/01/2017,C&M-GMS Global Sum,PRC DELEGATED CO-COMMISSIONING,DEVONSHIRE GREEN MEDICAL CENTRE,15848064,"41,569.20"
Department of Health,NHS Sheffield CCG,31/01/2017,C&M-GMS MPIG Correction Factor,PRC DELEGATED CO-COMMISSIONING,DEVONSHIRE GREEN MEDICAL CENTRE,15848064,"6,462.40"
Department of Health,NHS Sheffield CCG,31/01/2017,C&M-GMS Prem Notional Rent,PRC DELEGATED CO-COMMISSIONING,DEVONSHIRE GREEN MEDICAL CENTRE,15848064,"5,987.50"
Department of Health,NHS Sheffield CCG,31/01/2017,C&M-GMS Prem Rates,PRC DELEGATED CO-COMMISSIONING,DEVONSHIRE GREEN MEDICAL CENTRE,15848064,363
Department of Health,NHS Sheffield CCG,31/01/2017,C&M-GMS Prof Fees Prescribing,PRC DELEGATED CO-COMMISSIONING,DEVONSHIRE GREEN MEDICAL CENTRE,15848064,420.89
Department of Health,NHS Sheffield CCG,31/01/2017,C&M-GMS QOF Aspiration,PRC DELEGATED CO-COMMISSIONING,DEVONSHIRE GREEN MEDICAL CENTRE,15848064,"4,722.03"
Department of Health,NHS Sheffield CCG,31/01/2017,Hcare Srv Rec Fdtn Trust-Contract Baseline,ACUTE COMMISSIONING,DONCASTER AND BASSETLAW HOSPITALS NHS FOUNDATION TRUST,15590550,"43,041.00"
Department of Health,NHS Sheffield CCG,31/01/2017,Hcare Srv Rec Fdtn Trust-Contract Baseline,ACUTE COMMISSIONING,DONCASTER AND BASSETLAW HOSPITALS NHS FOUNDATION TRUST,15644789,"28,477.00"
Department of Health,NHS Sheffield CCG,31/01/2017,C&M-PMS Contract Value,PRC DELEGATED CO-COMMISSIONING,DOVERCOURT SURGERY,15610562,"-63,529.08"
Department of Health,NHS Sheffield CCG,31/01/2017,C&M-PMS GP Statutory Levy,PRC DELEGATED CO-COMMISSIONING,DOVERCOURT SURGERY,15610562,-243.3
Department of Health,NHS Sheffield CCG,31/01/2017,C&M-PMS Out of Hours Opt Outs,PRC DELEGATED CO-COMMISSIONING,DOVERCOURT SURGERY,15610562,-170.09
Department of Health,NHS Sheffield CCG,31/01/2017,C&M-PMS Voluntary Levy,PRC DELEGATED CO-COMMISSIONING,DOVERCOURT SURGERY,15610562,-40.55
Department of Health,NHS Sheffield CCG,31/01/2017,C&M-PMS Baseline Adjustment,PRC DELEGATED CO-COMMISSIONING,DOVERCOURT SURGERY,15610563,"7,232.08"
Department of Health,NHS Sheffield CCG,31/01/2017,C&M-PMS Contract Value,PRC DELEGATED CO-COMMISSIONING,DOVERCOURT SURGERY,15610563,"127,887.34"
Department of Health,NHS Sheffield CCG,31/01/2017,C&M-PMS Out of Hours Opt Outs,PRC DELEGATED CO-COMMISSIONING,DOVERCOURT SURGERY,15610563,"-2,994.08"
Department of Health,NHS Sheffield CCG,31/01/2017,C&M-PMS Prem Actual Rent,PRC DELEGATED CO-COMMISSIONING,DOVERCOURT SURGERY,15610563,"12,400.00"
Department of Health,NHS Sheffield CCG,31/01/2017,C&M-PMS Prem Notional Rent,PRC DELEGATED CO-COMMISSIONING,DOVERCOURT SURGERY,15610563,"1,708.34"
Department of Health,NHS Sheffield CCG,31/01/2017,C&M-PMS Prem Water Rates,PRC DELEGATED CO-COMMISSIONING,DOVERCOURT SURGERY,15610563,606.13
Department of Health,NHS Sheffield CCG,31/01/2017,C&M-PMS QOF Aspiration,PRC DELEGATED CO-COMMISSIONING,DOVERCOURT SURGERY,15610563,"7,095.60"
Department of Health,NHS Sheffield CCG,31/01/2017,C&M-PMS Contract Value,PRC DELEGATED CO-COMMISSIONING,DR MEHROTRA & PARTNER,15610564,"-26,258.92"
Department of Health,NHS Sheffield CCG,31/01/2017,C&M-PMS GP Statutory Levy,PRC DELEGATED CO-COMMISSIONING,DR MEHROTRA & PARTNER,15610564,-102.57
Department of Health,NHS Sheffield CCG,31/01/2017,C&M-PMS Voluntary Levy,PRC DELEGATED CO-COMMISSIONING,DR MEHROTRA & PARTNER,15610564,-17.1
Department of Health,NHS Sheffield CCG,31/01/2017,C&M-PMS Baseline Adjustment,PRC DELEGATED CO-COMMISSIONING,DR MEHROTRA & PARTNER,15610565,"1,771.75"
Department of Health,NHS Sheffield CCG,31/01/2017,C&M-PMS Contract Value,PRC DELEGATED CO-COMMISSIONING,DR MEHROTRA & PARTNER,15610565,"52,135.54"
Department of Health,NHS Sheffield CCG,31/01/2017,C&M-PMS Prem Notional Rent,PRC DELEGATED CO-COMMISSIONING,DR MEHROTRA & PARTNER,15610565,"5,157.33"
Department of Health,NHS Sheffield CCG,31/01/2017,C&M-PMS Prem Rates,PRC DELEGATED CO-COMMISSIONING,DR MEHROTRA & PARTNER,15610565,"1,234.20"
Department of Health,NHS Sheffield CCG,31/01/2017,C&M-PMS Prem Water Rates,PRC DELEGATED CO-COMMISSIONING,DR MEHROTRA & PARTNER,15610565,471.41
Department of Health,NHS Sheffield CCG,31/01/2017,C&M-PMS QOF Aspiration,PRC DELEGATED CO-COMMISSIONING,DR MEHROTRA & PARTNER,15610565,"3,080.24"
Department of Health,NHS Sheffield CCG,31/01/2017,C&M-PMS Contract Value,PRC DELEGATED CO-COMMISSIONING,DR MILNER & PARTNERS,15610566,"-70,473.34"
Department of Health,NHS Sheffield CCG,31/01/2017,C&M-PMS GP Statutory Levy,PRC DELEGATED CO-COMMISSIONING,DR MILNER & PARTNERS,15610566,-314.13
Department of Health,NHS Sheffield CCG,31/01/2017,C&M-PMS Out of Hours Opt Outs,PRC DELEGATED CO-COMMISSIONING,DR MILNER & PARTNERS,15610566,-89.98
Department of Health,NHS Sheffield CCG,31/01/2017,C&M-PMS Voluntary Levy,PRC DELEGATED CO-COMMISSIONING,DR MILNER & PARTNERS,15610566,-52.36
Department of Health,NHS Sheffield CCG,31/01/2017,ME - PMS TPS Added Years Adj EEs,PRC DELEGATED CO-COMMISSIONING,DR MILNER & PARTNERS,15610566,-253.13
Department of Health,NHS Sheffield CCG,31/01/2017,C&M-PMS Baseline Adjustment,PRC DELEGATED CO-COMMISSIONING,DR MILNER & PARTNERS,15610567,"9,162.92"
Department of Health,NHS Sheffield CCG,31/01/2017,C&M-PMS Contract Value,PRC DELEGATED CO-COMMISSIONING,DR MILNER & PARTNERS,15610567,"138,708.58"
Department of Health,NHS Sheffield CCG,31/01/2017,C&M-PMS Out of Hours Opt Outs,PRC DELEGATED CO-COMMISSIONING,DR MILNER & PARTNERS,15610567,"-3,256.58"
Department of Health,NHS Sheffield CCG,31/01/2017,C&M-PMS PCO Locum Adop/Pat/Mat,PRC DELEGATED CO-COMMISSIONING,DR MILNER & PARTNERS,15610567,"9,908.16"
Department of Health,NHS Sheffield CCG,31/01/2017,C&M-PMS Prem Actual Rent,PRC DELEGATED CO-COMMISSIONING,DR MILNER & PARTNERS,15610567,"11,382.00"
Department of Health,NHS Sheffield CCG,31/01/2017,C&M-PMS Prem Notional Rent,PRC DELEGATED CO-COMMISSIONING,DR MILNER & PARTNERS,15610567,"4,221.58"
Department of Health,NHS Sheffield CCG,31/01/2017,C&M-PMS Prem Rates,PRC DELEGATED CO-COMMISSIONING,DR MILNER & PARTNERS,15610567,"1,702.08"
Department of Health,NHS Sheffield CCG,31/01/2017,C&M-PMS Prem Water Rates,PRC DELEGATED CO-COMMISSIONING,DR MILNER & PARTNERS,15610567,191.73
Department of Health,NHS Sheffield CCG,31/01/2017,C&M-PMS QOF Aspiration,PRC DELEGATED CO-COMMISSIONING,DR MILNER & PARTNERS,15610567,"6,732.84"
Department of Health,NHS Sheffield CCG,31/01/2017,C&M-GMS Cost of Drugs -Prescribing,LOCAL ENHANCED SERVICES,DUKE MEDICAL CENTRE,15848072,"2,783.66"
Department of Health,NHS Sheffield CCG,31/01/2017,C&M-GMS Global Sum,PRC DELEGATED CO-COMMISSIONING,DUKE MEDICAL CENTRE,15848072,"49,350.84"
Department of Health,NHS Sheffield CCG,31/01/2017,C&M-GMS MPIG Correction Factor,PRC DELEGATED CO-COMMISSIONING,DUKE MEDICAL CENTRE,15848072,"1,225.02"
Department of Health,NHS Sheffield CCG,31/01/2017,C&M-GMS Prem Notional Rent,PRC DELEGATED CO-COMMISSIONING,DUKE MEDICAL CENTRE,15848072,"5,721.67"
Department of Health,NHS Sheffield CCG,31/01/2017,C&M-GMS Prem Rates,PRC DELEGATED CO-COMMISSIONING,DUKE MEDICAL CENTRE,15848072,834.9
Department of Health,NHS Sheffield CCG,31/01/2017,C&M-GMS Prof Fees Prescribing,PRC DELEGATED CO-COMMISSIONING,DUKE MEDICAL CENTRE,15848072,759.99
Department of Health,NHS Sheffield CCG,31/01/2017,C&M-GMS QOF Aspiration,PRC DELEGATED CO-COMMISSIONING,DUKE MEDICAL CENTRE,15848072,"4,848.26"
Department of Health,NHS Sheffield CCG,31/01/2017,C&M-PMS Baseline Adjustment,PRC DELEGATED CO-COMMISSIONING,DUNNINC ROAD SURGERY,15610569,"2,437.42"
Department of Health,NHS Sheffield CCG,31/01/2017,C&M-PMS Contract Value,PRC DELEGATED CO-COMMISSIONING,DUNNINC ROAD SURGERY,15610569,"45,940.38"
Department of Health,NHS Sheffield CCG,31/01/2017,C&M-PMS Prem Notional Rent,PRC DELEGATED CO-COMMISSIONING,DUNNINC ROAD SURGERY,15610569,"1,604.17"
Department of Health,NHS Sheffield CCG,31/01/2017,C&M-PMS QOF Aspiration,PRC DELEGATED CO-COMMISSIONING,DUNNINC ROAD SURGERY,15610569,"2,305.31"
Department of Health,NHS Sheffield CCG,31/01/2017,C&M-PMS Contract Value,PRC DELEGATED CO-COMMISSIONING,DYKES HALL MEDICAL CENTRE,15610570,"-60,942.63"
Department of Health,NHS Sheffield CCG,31/01/2017,C&M-PMS GP Statutory Levy,PRC DELEGATED CO-COMMISSIONING,DYKES HALL MEDICAL CENTRE,15610570,-291.18
Department of Health,NHS Sheffield CCG,31/01/2017,C&M-PMS Out of Hours Opt Outs,PRC DELEGATED CO-COMMISSIONING,DYKES HALL MEDICAL CENTRE,15610570,-77.68
Department of Health,NHS Sheffield CCG,31/01/2017,C&M-PMS Voluntary Levy,PRC DELEGATED CO-COMMISSIONING,DYKES HALL MEDICAL CENTRE,15610570,-48.53
Department of Health,NHS Sheffield CCG,31/01/2017,ME - PMS TPS Added Years Adj EEs,PRC DELEGATED CO-COMMISSIONING,DYKES HALL MEDICAL CENTRE,15610570,-273.42
Department of Health,NHS Sheffield CCG,31/01/2017,C&M-PMS Baseline Adjustment,PRC DELEGATED CO-COMMISSIONING,DYKES HALL MEDICAL CENTRE,15610571,399.42
Department of Health,NHS Sheffield CCG,31/01/2017,C&M-PMS Contract Value,PRC DELEGATED CO-COMMISSIONING,DYKES HALL MEDICAL CENTRE,15610571,"127,954.45"
Department of Health,NHS Sheffield CCG,31/01/2017,C&M-PMS Out of Hours Opt Outs,PRC DELEGATED CO-COMMISSIONING,DYKES HALL MEDICAL CENTRE,15610571,"-3,200.76"
Department of Health,NHS Sheffield CCG,31/01/2017,C&M-PMS Prem Notional Rent,PRC DELEGATED CO-COMMISSIONING,DYKES HALL MEDICAL CENTRE,15610571,"5,298.97"
Department of Health,NHS Sheffield CCG,31/01/2017,C&M-PMS QOF Aspiration,PRC DELEGATED CO-COMMISSIONING,DYKES HALL MEDICAL CENTRE,15610571,"8,049.09"
Department of Health,NHS Sheffield CCG,31/01/2017,C&M-PMS Contract Value,PRC DELEGATED CO-COMMISSIONING,EAST BANK MEDICAL CENTRE,15610572,"-41,466.23"
Department of Health,NHS Sheffield CCG,31/01/2017,C&M-PMS GP Statutory Levy,PRC DELEGATED CO-COMMISSIONING,EAST BANK MEDICAL CENTRE,15610572,-166.53
Department of Health,NHS Sheffield CCG,31/01/2017,C&M-PMS Out of Hours Opt Outs,PRC DELEGATED CO-COMMISSIONING,EAST BANK MEDICAL CENTRE,15610572,-35.84
Department of Health,NHS Sheffield CCG,31/01/2017,C&M-PMS Voluntary Levy,PRC DELEGATED CO-COMMISSIONING,EAST BANK MEDICAL CENTRE,15610572,-27.76
Department of Health,NHS Sheffield CCG,31/01/2017,C&M-PMS Baseline Adjustment,PRC DELEGATED CO-COMMISSIONING,EAST BANK MEDICAL CENTRE,15610573,"3,176.25"
Department of Health,NHS Sheffield CCG,31/01/2017,C&M-PMS Contract Value,PRC DELEGATED CO-COMMISSIONING,EAST BANK MEDICAL CENTRE,15610573,"83,668.72"
Department of Health,NHS Sheffield CCG,31/01/2017,C&M-PMS Out of Hours Opt Outs,PRC DELEGATED CO-COMMISSIONING,EAST BANK MEDICAL CENTRE,15610573,"-2,036.66"
Department of Health,NHS Sheffield CCG,31/01/2017,C&M-PMS Prem Notional Rent,PRC DELEGATED CO-COMMISSIONING,EAST BANK MEDICAL CENTRE,15610573,"10,466.67"
Department of Health,NHS Sheffield CCG,31/01/2017,C&M-PMS Prem Rates,PRC DELEGATED CO-COMMISSIONING,EAST BANK MEDICAL CENTRE,15610573,"5,467.00"
Department of Health,NHS Sheffield CCG,31/01/2017,C&M-PMS QOF Aspiration,PRC DELEGATED CO-COMMISSIONING,EAST BANK MEDICAL CENTRE,15610573,"4,604.77"
Department of Health,NHS Sheffield CCG,31/01/2017,C&M-GMS Cost of Drugs -Prescribing,LOCAL ENHANCED SERVICES,ECCLESFIELD GROUP PRACTICE,15848068,"11,065.75"
Department of Health,NHS Sheffield CCG,31/01/2017,C&M-GMS Global Sum,PRC DELEGATED CO-COMMISSIONING,ECCLESFIELD GROUP PRACTICE,15848068,"58,735.68"
Department of Health,NHS Sheffield CCG,31/01/2017,C&M-GMS PCO Locum Adop/Pat/Mat,PRC DELEGATED CO-COMMISSIONING,ECCLESFIELD GROUP PRACTICE,15848068,"4,817.17"
Department of Health,NHS Sheffield CCG,31/01/2017,C&M-GMS Prem Notional Rent,PRC DELEGATED CO-COMMISSIONING,ECCLESFIELD GROUP PRACTICE,15848068,"6,545.00"
Department of Health,NHS Sheffield CCG,31/01/2017,C&M-GMS Prem Rates,PRC DELEGATED CO-COMMISSIONING,ECCLESFIELD GROUP PRACTICE,15848068,"2,723.18"
Department of Health,NHS Sheffield CCG,31/01/2017,C&M-GMS Prof Fees Prescribing,PRC DELEGATED CO-COMMISSIONING,ECCLESFIELD GROUP PRACTICE,15848068,"3,263.62"
Department of Health,NHS Sheffield CCG,31/01/2017,C&M-GMS QOF Aspiration,PRC DELEGATED CO-COMMISSIONING,ECCLESFIELD GROUP PRACTICE,15848068,"9,456.61"
Department of Health,NHS Sheffield CCG,31/01/2017,C&M-GMS Cost of Drugs -Prescribing,LOCAL ENHANCED SERVICES,ELM LANE SURGERY,15848070,"2,581.98"
Department of Health,NHS Sheffield CCG,31/01/2017,C&M-GMS Global Sum,PRC DELEGATED CO-COMMISSIONING,ELM LANE SURGERY,15848070,"35,464.32"
Department of Health,NHS Sheffield CCG,31/01/2017,C&M-GMS MPIG Correction Factor,PRC DELEGATED CO-COMMISSIONING,ELM LANE SURGERY,15848070,"1,677.05"
Department of Health,NHS Sheffield CCG,31/01/2017,C&M-GMS Prem Notional Rent,PRC DELEGATED CO-COMMISSIONING,ELM LANE SURGERY,15848070,"4,951.92"
Department of Health,NHS Sheffield CCG,31/01/2017,C&M-GMS Prof Fees Prescribing,PRC DELEGATED CO-COMMISSIONING,ELM LANE SURGERY,15848070,606.07
Department of Health,NHS Sheffield CCG,31/01/2017,C&M-GMS QOF Aspiration,PRC DELEGATED CO-COMMISSIONING,ELM LANE SURGERY,15848070,"4,440.21"
Department of Health,NHS Sheffield CCG,31/01/2017,Cont Care-Physical Disab (<65),CHC ADULT FULLY FUNDED,FAIRWINDS HEALTH CARE LTD,15680872,"51,703.66"
Department of Health,NHS Sheffield CCG,31/01/2017,C&M-PMS Baseline Adjustment,PRC DELEGATED CO-COMMISSIONING,FALKLAND HOUSE,15610577,"2,511.83"
Department of Health,NHS Sheffield CCG,31/01/2017,C&M-PMS Contract Value,PRC DELEGATED CO-COMMISSIONING,FALKLAND HOUSE,15610577,"46,297.54"
Department of Health,NHS Sheffield CCG,31/01/2017,C&M-PMS Out of Hours Opt Outs,PRC DELEGATED CO-COMMISSIONING,FALKLAND HOUSE,15610577,-960.75
Department of Health,NHS Sheffield CCG,31/01/2017,C&M-PMS Prem Notional Rent,PRC DELEGATED CO-COMMISSIONING,FALKLAND HOUSE,15610577,"1,802.08"
Department of Health,NHS Sheffield CCG,31/01/2017,C&M-PMS Prem Rates,PRC DELEGATED CO-COMMISSIONING,FALKLAND HOUSE,15610577,665.5
Department of Health,NHS Sheffield CCG,31/01/2017,C&M-PMS QOF Aspiration,PRC DELEGATED CO-COMMISSIONING,FALKLAND HOUSE,15610577,"2,350.86"
Department of Health,NHS Sheffield CCG,31/01/2017,C&M-GMS Cost of Drugs -Prescribing,LOCAL ENHANCED SERVICES,FAR LANE MEDICAL CENTRE,15848079,"2,655.78"
Department of Health,NHS Sheffield CCG,31/01/2017,C&M-GMS Global Sum,PRC DELEGATED CO-COMMISSIONING,FAR LANE MEDICAL CENTRE,15848079,"51,115.74"
Department of Health,NHS Sheffield CCG,31/01/2017,C&M-GMS Prem Notional Rent,PRC DELEGATED CO-COMMISSIONING,FAR LANE MEDICAL CENTRE,15848079,"3,637.50"
Department of Health,NHS Sheffield CCG,31/01/2017,C&M-GMS Prem Rates,PRC DELEGATED CO-COMMISSIONING,FAR LANE MEDICAL CENTRE,15848079,"1,016.40"
Department of Health,NHS Sheffield CCG,31/01/2017,C&M-GMS Prof Fees Prescribing,PRC DELEGATED CO-COMMISSIONING,FAR LANE MEDICAL CENTRE,15848079,877.83
Department of Health,NHS Sheffield CCG,31/01/2017,C&M-GMS QOF Aspiration,PRC DELEGATED CO-COMMISSIONING,FAR LANE MEDICAL CENTRE,15848079,"5,648.61"
Department of Health,NHS Sheffield CCG,31/01/2017,C&M-PMS Contract Value,PRC DELEGATED CO-COMMISSIONING,FIRTH PARK SURGERY,15610574,"-62,632.00"
Department of Health,NHS Sheffield CCG,31/01/2017,C&M-PMS GP Statutory Levy,PRC DELEGATED CO-COMMISSIONING,FIRTH PARK SURGERY,15610574,-288.81
Department of Health,NHS Sheffield CCG,31/01/2017,C&M-PMS Out of Hours Opt Outs,PRC DELEGATED CO-COMMISSIONING,FIRTH PARK SURGERY,15610574,-51.75
Department of Health,NHS Sheffield CCG,31/01/2017,C&M-PMS Voluntary Levy,PRC DELEGATED CO-COMMISSIONING,FIRTH PARK SURGERY,15610574,-48.14
Department of Health,NHS Sheffield CCG,31/01/2017,ME - PMS TPS Added Years Adj EEs,PRC DELEGATED CO-COMMISSIONING,FIRTH PARK SURGERY,15610574,-29.06
Department of Health,NHS Sheffield CCG,31/01/2017,C&M-PMS Contract Value,PRC DELEGATED CO-COMMISSIONING,FIRTH PARK SURGERY,15610575,"129,105.94"
Department of Health,NHS Sheffield CCG,31/01/2017,C&M-PMS DES Learn Dsblty Hlth Chk,PRC DELEGATED CO-COMMISSIONING,FIRTH PARK SURGERY,15610575,"1,972.00"
Department of Health,NHS Sheffield CCG,31/01/2017,C&M-PMS DES UNPLANNED ADMISSIONS,PRC DELEGATED CO-COMMISSIONING,FIRTH PARK SURGERY,15610575,"7,439.74"
Department of Health,NHS Sheffield CCG,31/01/2017,C&M-PMS Out of Hours Opt Outs,PRC DELEGATED CO-COMMISSIONING,FIRTH PARK SURGERY,15610575,"-3,322.97"
Department of Health,NHS Sheffield CCG,31/01/2017,C&M-PMS Prem Notional Rent,PRC DELEGATED CO-COMMISSIONING,FIRTH PARK SURGERY,15610575,"4,500.00"
Department of Health,NHS Sheffield CCG,31/01/2017,C&M-PMS Prem Rates,PRC DELEGATED CO-COMMISSIONING,FIRTH PARK SURGERY,15610575,"1,718.79"
Department of Health,NHS Sheffield CCG,31/01/2017,C&M-PMS QOF Aspiration,PRC DELEGATED CO-COMMISSIONING,FIRTH PARK SURGERY,15610575,"7,439.23"
Department of Health,NHS Sheffield CCG,31/01/2017,C&M-GMS Cost of Drugs -Prescribing,LOCAL ENHANCED SERVICES,FLOWERS HEALTH CENTRE,15848150,"2,311.84"
Department of Health,NHS Sheffield CCG,31/01/2017,C&M-GMS Global Sum,PRC DELEGATED CO-COMMISSIONING,FLOWERS HEALTH CENTRE,15848150,"30,798.67"
Department of Health,NHS Sheffield CCG,31/01/2017,C&M-GMS MPIG Correction Factor,PRC DELEGATED CO-COMMISSIONING,FLOWERS HEALTH CENTRE,15848150,"2,952.62"
Department of Health,NHS Sheffield CCG,31/01/2017,C&M-GMS Prem Healthcentre Rent,PRC DELEGATED CO-COMMISSIONING,FLOWERS HEALTH CENTRE,15848150,"32,996.55"
Department of Health,NHS Sheffield CCG,31/01/2017,C&M-GMS Prof Fees Prescribing,PRC DELEGATED CO-COMMISSIONING,FLOWERS HEALTH CENTRE,15848150,495.44
Department of Health,NHS Sheffield CCG,31/01/2017,C&M-GMS QOF Aspiration,PRC DELEGATED CO-COMMISSIONING,FLOWERS HEALTH CENTRE,15848150,"3,922.75"
Department of Health,NHS Sheffield CCG,31/01/2017,C&M-PMS Contract Value,PRC DELEGATED CO-COMMISSIONING,FOXHILL MEDICAL CENTRE SHEFFIELD,15610626,"-46,540.03"
Department of Health,NHS Sheffield CCG,31/01/2017,C&M-PMS GP Statutory Levy,PRC DELEGATED CO-COMMISSIONING,FOXHILL MEDICAL CENTRE SHEFFIELD,15610626,-186.18
Department of Health,NHS Sheffield CCG,31/01/2017,C&M-PMS Out of Hours Opt Outs,PRC DELEGATED CO-COMMISSIONING,FOXHILL MEDICAL CENTRE SHEFFIELD,15610626,-48.84
Department of Health,NHS Sheffield CCG,31/01/2017,C&M-PMS Prem Healthcentre Rent,PRC DELEGATED CO-COMMISSIONING,FOXHILL MEDICAL CENTRE SHEFFIELD,15610626,"-2,261.89"
Department of Health,NHS Sheffield CCG,31/01/2017,C&M-PMS Voluntary Levy,PRC DELEGATED CO-COMMISSIONING,FOXHILL MEDICAL CENTRE SHEFFIELD,15610626,-31.03
Department of Health,NHS Sheffield CCG,31/01/2017,C&M-PMS Baseline Adjustment,PRC DELEGATED CO-COMMISSIONING,FOXHILL MEDICAL CENTRE SHEFFIELD,15610627,"2,902.50"
Department of Health,NHS Sheffield CCG,31/01/2017,C&M-PMS Contract Value,PRC DELEGATED CO-COMMISSIONING,FOXHILL MEDICAL CENTRE SHEFFIELD,15610627,"94,435.44"
Department of Health,NHS Sheffield CCG,31/01/2017,C&M-PMS Out of Hours Opt Outs,PRC DELEGATED CO-COMMISSIONING,FOXHILL MEDICAL CENTRE SHEFFIELD,15610627,"-2,291.28"
Department of Health,NHS Sheffield CCG,31/01/2017,C&M-PMS Prem Healthcentre Rent,PRC DELEGATED CO-COMMISSIONING,FOXHILL MEDICAL CENTRE SHEFFIELD,15610627,"48,172.21"
Department of Health,NHS Sheffield CCG,31/01/2017,C&M-PMS QOF Aspiration,PRC DELEGATED CO-COMMISSIONING,FOXHILL MEDICAL CENTRE SHEFFIELD,15610627,"5,186.12"
Department of Health,NHS Sheffield CCG,31/01/2017,C&M-PMS Contract Value,PRC DELEGATED CO-COMMISSIONING,GLEADLESS MEDICAL CENTRE,15610578,"-61,039.11"
Department of Health,NHS Sheffield CCG,31/01/2017,C&M-PMS GP Statutory Levy,PRC DELEGATED CO-COMMISSIONING,GLEADLESS MEDICAL CENTRE,15610578,-265.14
Department of Health,NHS Sheffield CCG,31/01/2017,C&M-PMS Out of Hours Opt Outs,PRC DELEGATED CO-COMMISSIONING,GLEADLESS MEDICAL CENTRE,15610578,-89.14
Department of Health,NHS Sheffield CCG,31/01/2017,C&M-PMS Voluntary Levy,PRC DELEGATED CO-COMMISSIONING,GLEADLESS MEDICAL CENTRE,15610578,-44.19
Department of Health,NHS Sheffield CCG,31/01/2017,C&M-PMS Baseline Adjustment,PRC DELEGATED CO-COMMISSIONING,GLEADLESS MEDICAL CENTRE,15610579,"2,522.83"
Department of Health,NHS Sheffield CCG,31/01/2017,C&M-PMS Contract Value,PRC DELEGATED CO-COMMISSIONING,GLEADLESS MEDICAL CENTRE,15610579,"125,096.18"
Department of Health,NHS Sheffield CCG,31/01/2017,C&M-PMS Out of Hours Opt Outs,PRC DELEGATED CO-COMMISSIONING,GLEADLESS MEDICAL CENTRE,15610579,"-3,042.06"
Department of Health,NHS Sheffield CCG,31/01/2017,C&M-PMS Prem Notional Rent,PRC DELEGATED CO-COMMISSIONING,GLEADLESS MEDICAL CENTRE,15610579,"6,750.00"
Department of Health,NHS Sheffield CCG,31/01/2017,C&M-PMS Prem Rates,PRC DELEGATED CO-COMMISSIONING,GLEADLESS MEDICAL CENTRE,15610579,"1,118.25"
Department of Health,NHS Sheffield CCG,31/01/2017,C&M-PMS QOF Aspiration,PRC DELEGATED CO-COMMISSIONING,GLEADLESS MEDICAL CENTRE,15610579,"7,431.65"
Department of Health,NHS Sheffield CCG,31/01/2017,C&M-GMS Cost of Drugs -Prescribing,LOCAL ENHANCED SERVICES,GRENOSIDE SURGERY,15868034,"3,115.42"
Department of Health,NHS Sheffield CCG,31/01/2017,C&M-GMS Global Sum,PRC DELEGATED CO-COMMISSIONING,GRENOSIDE SURGERY,15868034,"50,258.83"
Department of Health,NHS Sheffield CCG,31/01/2017,C&M-GMS Prem Notional Rent,PRC DELEGATED CO-COMMISSIONING,GRENOSIDE SURGERY,15868034,"8,150.17"
Department of Health,NHS Sheffield CCG,31/01/2017,C&M-GMS Prof Fees Prescribing,PRC DELEGATED CO-COMMISSIONING,GRENOSIDE SURGERY,15868034,971.63
Department of Health,NHS Sheffield CCG,31/01/2017,C&M-GMS QOF Aspiration,PRC DELEGATED CO-COMMISSIONING,GRENOSIDE SURGERY,15868034,"5,640.25"
Department of Health,NHS Sheffield CCG,31/01/2017,ME - GMS GP Prior Year ERs,PRC DELEGATED CO-COMMISSIONING,GRENOSIDE SURGERY,15868034,"3,432.00"
Department of Health,NHS Sheffield CCG,31/01/2017,ME-GMS GP Prior Year AVCs,PRC DELEGATED CO-COMMISSIONING,GRENOSIDE SURGERY,15868034,945.75
Department of Health,NHS Sheffield CCG,31/01/2017,ME-GMS GP Prior Year EEs,PRC DELEGATED CO-COMMISSIONING,GRENOSIDE SURGERY,15868034,"1,920.20"
Department of Health,NHS Sheffield CCG,31/01/2017,C&M-GMS Cost of Drugs -Prescribing,LOCAL ENHANCED SERVICES,GREYSTONES MEDICAL CENTRE,15848085,840.32
Department of Health,NHS Sheffield CCG,31/01/2017,C&M-GMS Global Sum,PRC DELEGATED CO-COMMISSIONING,GREYSTONES MEDICAL CENTRE,15848085,"17,801.54"
Department of Health,NHS Sheffield CCG,31/01/2017,C&M-GMS MPIG Correction Factor,PRC DELEGATED CO-COMMISSIONING,GREYSTONES MEDICAL CENTRE,15848085,"2,208.92"
Department of Health,NHS Sheffield CCG,31/01/2017,C&M-GMS Prem Notional Rent,PRC DELEGATED CO-COMMISSIONING,GREYSTONES MEDICAL CENTRE,15848085,"2,729.17"
Department of Health,NHS Sheffield CCG,31/01/2017,C&M-GMS Prem Rates,PRC DELEGATED CO-COMMISSIONING,GREYSTONES MEDICAL CENTRE,15848085,849.04
Department of Health,NHS Sheffield CCG,31/01/2017,C&M-GMS Prem Water Rates,PRC DELEGATED CO-COMMISSIONING,GREYSTONES MEDICAL CENTRE,15848085,58.91
Department of Health,NHS Sheffield CCG,31/01/2017,C&M-GMS Prof Fees Prescribing,PRC DELEGATED CO-COMMISSIONING,GREYSTONES MEDICAL CENTRE,15848085,252.53
Department of Health,NHS Sheffield CCG,31/01/2017,C&M-GMS QOF Aspiration,PRC DELEGATED CO-COMMISSIONING,GREYSTONES MEDICAL CENTRE,15848085,"1,888.68"
Department of Health,NHS Sheffield CCG,31/01/2017,C&M-PMS Contract Value,PRC DELEGATED CO-COMMISSIONING,HACKENTHORPE MEDICAL CENTRE,15610582,"-43,660.67"
Department of Health,NHS Sheffield CCG,31/01/2017,C&M-PMS GP Statutory Levy,PRC DELEGATED CO-COMMISSIONING,HACKENTHORPE MEDICAL CENTRE,15610582,-199.83
Department of Health,NHS Sheffield CCG,31/01/2017,C&M-PMS Out of Hours Opt Outs,PRC DELEGATED CO-COMMISSIONING,HACKENTHORPE MEDICAL CENTRE,15610582,-52.55
Department of Health,NHS Sheffield CCG,31/01/2017,C&M-PMS Voluntary Levy,PRC DELEGATED CO-COMMISSIONING,HACKENTHORPE MEDICAL CENTRE,15610582,-33.31
Department of Health,NHS Sheffield CCG,31/01/2017,ME - PMS TPS Added Years Adj EEs,PRC DELEGATED CO-COMMISSIONING,HACKENTHORPE MEDICAL CENTRE,15610582,-457.5
Department of Health,NHS Sheffield CCG,31/01/2017,C&M-PMS Baseline Adjustment,PRC DELEGATED CO-COMMISSIONING,HACKENTHORPE MEDICAL CENTRE,15610583,"4,211.17"
Department of Health,NHS Sheffield CCG,31/01/2017,C&M-PMS Contract Value,PRC DELEGATED CO-COMMISSIONING,HACKENTHORPE MEDICAL CENTRE,15610583,"87,461.27"
Department of Health,NHS Sheffield CCG,31/01/2017,C&M-PMS Out of Hours Opt Outs,PRC DELEGATED CO-COMMISSIONING,HACKENTHORPE MEDICAL CENTRE,15610583,"-2,094.67"
Department of Health,NHS Sheffield CCG,31/01/2017,C&M-PMS Prem Notional Rent,PRC DELEGATED CO-COMMISSIONING,HACKENTHORPE MEDICAL CENTRE,15610583,"4,981.25"
Department of Health,NHS Sheffield CCG,31/01/2017,C&M-PMS Prem Rates,PRC DELEGATED CO-COMMISSIONING,HACKENTHORPE MEDICAL CENTRE,15610583,847
Department of Health,NHS Sheffield CCG,31/01/2017,C&M-PMS QOF Aspiration,PRC DELEGATED CO-COMMISSIONING,HACKENTHORPE MEDICAL CENTRE,15610583,"6,104.43"
Department of Health,NHS Sheffield CCG,31/01/2017,C&M-GMS Cost of Drugs -Prescribing,LOCAL ENHANCED SERVICES,HANDSWORTH MEDICAL PRACTICE SHEFFIELD,15848083,"4,875.92"
Department of Health,NHS Sheffield CCG,31/01/2017,C&M-GMS Global Sum,PRC DELEGATED CO-COMMISSIONING,HANDSWORTH MEDICAL PRACTICE SHEFFIELD,15848083,"67,541.27"
Department of Health,NHS Sheffield CCG,31/01/2017,C&M-GMS Prem Notional Rent,PRC DELEGATED CO-COMMISSIONING,HANDSWORTH MEDICAL PRACTICE SHEFFIELD,15848083,"3,321.67"
Department of Health,NHS Sheffield CCG,31/01/2017,C&M-GMS Prof Fees Prescribing,PRC DELEGATED CO-COMMISSIONING,HANDSWORTH MEDICAL PRACTICE SHEFFIELD,15848083,"1,544.02"
Department of Health,NHS Sheffield CCG,31/01/2017,C&M-GMS QOF Aspiration,PRC DELEGATED CO-COMMISSIONING,HANDSWORTH MEDICAL PRACTICE SHEFFIELD,15848083,"7,268.73"
Department of Health,NHS Sheffield CCG,31/01/2017,Cont Care-Physical Disab (<65),CHC ADULT FULLY FUNDED,HC ONE LTD,15682109,"25,850.88"
Department of Health,NHS Sheffield CCG,31/01/2017,C&M-GMS Cost of Drugs -Prescribing,LOCAL ENHANCED SERVICES,HEALTH CARE SURGERY,15848091,"1,982.01"
Department of Health,NHS Sheffield CCG,31/01/2017,C&M-GMS Global Sum,PRC DELEGATED CO-COMMISSIONING,HEALTH CARE SURGERY,15848091,"33,424.42"
Department of Health,NHS Sheffield CCG,31/01/2017,C&M-GMS MPIG Correction Factor,PRC DELEGATED CO-COMMISSIONING,HEALTH CARE SURGERY,15848091,"1,560.04"
Department of Health,NHS Sheffield CCG,31/01/2017,C&M-GMS Prem Notional Rent,PRC DELEGATED CO-COMMISSIONING,HEALTH CARE SURGERY,15848091,"3,862.50"
Department of Health,NHS Sheffield CCG,31/01/2017,C&M-GMS Prem Rates,PRC DELEGATED CO-COMMISSIONING,HEALTH CARE SURGERY,15848091,"1,356.40"
Department of Health,NHS Sheffield CCG,31/01/2017,C&M-GMS Prof Fees Prescribing,PRC DELEGATED CO-COMMISSIONING,HEALTH CARE SURGERY,15848091,449.74
Department of Health,NHS Sheffield CCG,31/01/2017,C&M-GMS QOF Aspiration,PRC DELEGATED CO-COMMISSIONING,HEALTH CARE SURGERY,15848091,"3,988.06"
Department of Health,NHS Sheffield CCG,31/01/2017,C&M-GMS Cost of Drugs -Prescribing,LOCAL ENHANCED SERVICES,HEELEY GREEN SURGERY,15848087,"2,708.22"
Department of Health,NHS Sheffield CCG,31/01/2017,C&M-GMS Global Sum,PRC DELEGATED CO-COMMISSIONING,HEELEY GREEN SURGERY,15848087,"36,480.73"
Department of Health,NHS Sheffield CCG,31/01/2017,C&M-GMS MPIG Correction Factor,PRC DELEGATED CO-COMMISSIONING,HEELEY GREEN SURGERY,15848087,752.4
Department of Health,NHS Sheffield CCG,31/01/2017,C&M-GMS Prem Notional Rent,PRC DELEGATED CO-COMMISSIONING,HEELEY GREEN SURGERY,15848087,"3,254.17"
Department of Health,NHS Sheffield CCG,31/01/2017,C&M-GMS Prem Rates,PRC DELEGATED CO-COMMISSIONING,HEELEY GREEN SURGERY,15848087,137.22
Department of Health,NHS Sheffield CCG,31/01/2017,C&M-GMS Prof Fees Prescribing,PRC DELEGATED CO-COMMISSIONING,HEELEY GREEN SURGERY,15848087,820.11
Department of Health,NHS Sheffield CCG,31/01/2017,C&M-GMS QOF Aspiration,PRC DELEGATED CO-COMMISSIONING,HEELEY GREEN SURGERY,15848087,"4,447.38"
Department of Health,NHS Sheffield CCG,31/01/2017,Cont Care-Learning Disab(<65),CHC ADULT FULLY FUNDED,HESLEY GROUP,15797940,"-29,670.62"
Department of Health,NHS Sheffield CCG,31/01/2017,C&M-GMS Cost of Drugs -Prescribing,LOCAL ENHANCED SERVICES,HOLLIES MEDICAL CENTRE,15848089,"3,049.21"
Department of Health,NHS Sheffield CCG,31/01/2017,C&M-GMS DES Learn Dsblty Hlth Chk,PRC DELEGATED CO-COMMISSIONING,HOLLIES MEDICAL CENTRE,15848089,"1,276.00"
Department of Health,NHS Sheffield CCG,31/01/2017,C&M-GMS Global Sum,PRC DELEGATED CO-COMMISSIONING,HOLLIES MEDICAL CENTRE,15848089,"47,413.19"
Department of Health,NHS Sheffield CCG,31/01/2017,C&M-GMS MPIG Correction Factor,PRC DELEGATED CO-COMMISSIONING,HOLLIES MEDICAL CENTRE,15848089,"2,905.46"
Department of Health,NHS Sheffield CCG,31/01/2017,C&M-GMS Prem Notional Rent,PRC DELEGATED CO-COMMISSIONING,HOLLIES MEDICAL CENTRE,15848089,"3,229.17"
Department of Health,NHS Sheffield CCG,31/01/2017,C&M-GMS Prof Fees Prescribing,PRC DELEGATED CO-COMMISSIONING,HOLLIES MEDICAL CENTRE,15848089,687.84
Department of Health,NHS Sheffield CCG,31/01/2017,C&M-GMS QOF Aspiration,PRC DELEGATED CO-COMMISSIONING,HOLLIES MEDICAL CENTRE,15848089,"5,955.77"
Department of Health,NHS Sheffield CCG,31/01/2017,Cont Care-Physical Disab (<65),CHC ADULT FULLY FUNDED,HORIZON CARE HOMES LTD,15680714,"42,335.08"
Department of Health,NHS Sheffield CCG,31/01/2017,C&M-PMS Contract Value,PRC DELEGATED CO-COMMISSIONING,JAUNTY SPRINGS HEALTH CENTRE,15610584,"-26,712.69"
Department of Health,NHS Sheffield CCG,31/01/2017,C&M-PMS GP Statutory Levy,PRC DELEGATED CO-COMMISSIONING,JAUNTY SPRINGS HEALTH CENTRE,15610584,-109.02
Department of Health,NHS Sheffield CCG,31/01/2017,C&M-PMS Out of Hours Opt Outs,PRC DELEGATED CO-COMMISSIONING,JAUNTY SPRINGS HEALTH CENTRE,15610584,-22.01
Department of Health,NHS Sheffield CCG,31/01/2017,C&M-PMS Voluntary Levy,PRC DELEGATED CO-COMMISSIONING,JAUNTY SPRINGS HEALTH CENTRE,15610584,-18.17
Department of Health,NHS Sheffield CCG,31/01/2017,C&M-PMS Baseline Adjustment,PRC DELEGATED CO-COMMISSIONING,JAUNTY SPRINGS HEALTH CENTRE,15610585,896
Department of Health,NHS Sheffield CCG,31/01/2017,C&M-PMS Contract Value,PRC DELEGATED CO-COMMISSIONING,JAUNTY SPRINGS HEALTH CENTRE,15610585,"54,300.70"
Department of Health,NHS Sheffield CCG,31/01/2017,C&M-PMS Out of Hours Opt Outs,PRC DELEGATED CO-COMMISSIONING,JAUNTY SPRINGS HEALTH CENTRE,15610585,"-1,328.43"
Department of Health,NHS Sheffield CCG,31/01/2017,C&M-PMS Prem Notional Rent,PRC DELEGATED CO-COMMISSIONING,JAUNTY SPRINGS HEALTH CENTRE,15610585,"3,208.34"
Department of Health,NHS Sheffield CCG,31/01/2017,C&M-PMS Prem Rates,PRC DELEGATED CO-COMMISSIONING,JAUNTY SPRINGS HEALTH CENTRE,15610585,"1,230.08"
Department of Health,NHS Sheffield CCG,31/01/2017,C&M-PMS QOF Aspiration,PRC DELEGATED CO-COMMISSIONING,JAUNTY SPRINGS HEALTH CENTRE,15610585,"3,987.95"
Department of Health,NHS Sheffield CCG,31/01/2017,C&M-GMS IT Comm Servs -GP Practices,PRIMARY CARE IT,KIER BUSINESS SERVICES LTD,15590735,"118,458.00"
Department of Health,NHS Sheffield CCG,31/01/2017,FM Computer Contracts,BUSINESS INFORMATICS,KIER BUSINESS SERVICES LTD,15590735,"41,803.20"
Department of Health,NHS Sheffield CCG,31/01/2017,C&M-GMS LES Translation Fees,INTERPRETING SERVICES,LANGUAGELINE SOLUTIONS,15823075,"51,025.60"
Department of Health,NHS Sheffield CCG,31/01/2017,Hcare Srv Rec NHS Trust-Contract Baseline,ACUTE COMMISSIONING,LEEDS TEACHING HOSPITALS NHS TRUST,15590465,"53,234.57"
Department of Health,NHS Sheffield CCG,31/01/2017,Cont Care-Funded Nursing Care Allow,FUNDED NURSING CARE,LIFE STYLE CARE (2011) PLC,15752230,"31,473.01"
Department of Health,NHS Sheffield CCG,31/01/2017,Cont Care-Physical Disab (65+),CHC ADULT FULLY FUNDED,LONGLEY HEALTH CARE LTD,15863109,"97,013.39"
Department of Health,NHS Sheffield CCG,31/01/2017,Cont Care-Physical Disab (<65),CHC ADULT FULLY FUNDED,LOXLEY HEALTH CARE LTD,15680898,"64,812.26"
Department of Health,NHS Sheffield CCG,31/01/2017,C&M-PMS Contract Value,PRC DELEGATED CO-COMMISSIONING,MANCHESTER ROAD SURGERY SHEFFIELD,15610587,"-27,365.42"
Department of Health,NHS Sheffield CCG,31/01/2017,C&M-PMS GP Statutory Levy,PRC DELEGATED CO-COMMISSIONING,MANCHESTER ROAD SURGERY SHEFFIELD,15610587,-137.13
Department of Health,NHS Sheffield CCG,31/01/2017,C&M-PMS Out of Hours Opt Outs,PRC DELEGATED CO-COMMISSIONING,MANCHESTER ROAD SURGERY SHEFFIELD,15610587,-54.31
Department of Health,NHS Sheffield CCG,31/01/2017,C&M-PMS Voluntary Levy,PRC DELEGATED CO-COMMISSIONING,MANCHESTER ROAD SURGERY SHEFFIELD,15610587,-22.86
Department of Health,NHS Sheffield CCG,31/01/2017,C&M-PMS Baseline Adjustment,PRC DELEGATED CO-COMMISSIONING,MANCHESTER ROAD SURGERY SHEFFIELD,15610588,893.25
Department of Health,NHS Sheffield CCG,31/01/2017,C&M-PMS Contract Value,PRC DELEGATED CO-COMMISSIONING,MANCHESTER ROAD SURGERY SHEFFIELD,15610588,"56,237.61"
Department of Health,NHS Sheffield CCG,31/01/2017,C&M-PMS Out of Hours Opt Outs,PRC DELEGATED CO-COMMISSIONING,MANCHESTER ROAD SURGERY SHEFFIELD,15610588,"-1,359.90"
Department of Health,NHS Sheffield CCG,31/01/2017,C&M-PMS PCO Locum Adop/Pat/Mat,PRC DELEGATED CO-COMMISSIONING,MANCHESTER ROAD SURGERY SHEFFIELD,15610588,"10,185.66"
Department of Health,NHS Sheffield CCG,31/01/2017,C&M-PMS Prem Cost Rent,PRC DELEGATED CO-COMMISSIONING,MANCHESTER ROAD SURGERY SHEFFIELD,15610588,"3,472.17"
Department of Health,NHS Sheffield CCG,31/01/2017,C&M-PMS Prem Notional Rent,PRC DELEGATED CO-COMMISSIONING,MANCHESTER ROAD SURGERY SHEFFIELD,15610588,442.91
Department of Health,NHS Sheffield CCG,31/01/2017,C&M-PMS Prem Rates,PRC DELEGATED CO-COMMISSIONING,MANCHESTER ROAD SURGERY SHEFFIELD,15610588,981.59
Department of Health,NHS Sheffield CCG,31/01/2017,C&M-PMS QOF Aspiration,PRC DELEGATED CO-COMMISSIONING,MANCHESTER ROAD SURGERY SHEFFIELD,15610588,"3,934.29"
Department of Health,NHS Sheffield CCG,31/01/2017,C&M-GMS Cost of Drugs -Prescribing,LOCAL ENHANCED SERVICES,MANOR PARK MEDICAL CENTRE SHEFFIELD,15848102,"2,311.44"
Department of Health,NHS Sheffield CCG,31/01/2017,C&M-GMS Global Sum,PRC DELEGATED CO-COMMISSIONING,MANOR PARK MEDICAL CENTRE SHEFFIELD,15848102,"31,518.85"
Department of Health,NHS Sheffield CCG,31/01/2017,C&M-GMS MPIG Correction Factor,PRC DELEGATED CO-COMMISSIONING,MANOR PARK MEDICAL CENTRE SHEFFIELD,15848102,745.59
Department of Health,NHS Sheffield CCG,31/01/2017,C&M-GMS Prem Notional Rent,PRC DELEGATED CO-COMMISSIONING,MANOR PARK MEDICAL CENTRE SHEFFIELD,15848102,"3,050.00"
Department of Health,NHS Sheffield CCG,31/01/2017,C&M-GMS Prem Rates,PRC DELEGATED CO-COMMISSIONING,MANOR PARK MEDICAL CENTRE SHEFFIELD,15848102,435.6
Department of Health,NHS Sheffield CCG,31/01/2017,C&M-GMS Prof Fees Prescribing,PRC DELEGATED CO-COMMISSIONING,MANOR PARK MEDICAL CENTRE SHEFFIELD,15848102,555.56
Department of Health,NHS Sheffield CCG,31/01/2017,C&M-GMS QOF Aspiration,PRC DELEGATED CO-COMMISSIONING,MANOR PARK MEDICAL CENTRE SHEFFIELD,15848102,"4,079.05"
Department of Health,NHS Sheffield CCG,31/01/2017,C&M-GMS Cost of Drugs -Prescribing,LOCAL ENHANCED SERVICES,MATHEWS PRACTICE,15848099,"4,111.89"
Department of Health,NHS Sheffield CCG,31/01/2017,C&M-GMS DES UNPLANNED ADMISSIONS,PRC DELEGATED CO-COMMISSIONING,MATHEWS PRACTICE,15848099,"12,650.96"
Department of Health,NHS Sheffield CCG,31/01/2017,C&M-GMS Global Sum,PRC DELEGATED CO-COMMISSIONING,MATHEWS PRACTICE,15848099,"63,243.52"
Department of Health,NHS Sheffield CCG,31/01/2017,C&M-GMS MPIG Correction Factor,PRC DELEGATED CO-COMMISSIONING,MATHEWS PRACTICE,15848099,"1,197.92"
Department of Health,NHS Sheffield CCG,31/01/2017,C&M-GMS PCO Locum Adop/Pat/Mat,PRC DELEGATED CO-COMMISSIONING,MATHEWS PRACTICE,15848099,"3,661.05"
Department of Health,NHS Sheffield CCG,31/01/2017,C&M-GMS Prem Notional Rent,PRC DELEGATED CO-COMMISSIONING,MATHEWS PRACTICE,15848099,"8,583.33"
Department of Health,NHS Sheffield CCG,31/01/2017,C&M-GMS Prem Rates,PRC DELEGATED CO-COMMISSIONING,MATHEWS PRACTICE,15848099,"1,598.35"
Department of Health,NHS Sheffield CCG,31/01/2017,C&M-GMS Prof Fees Prescribing,PRC DELEGATED CO-COMMISSIONING,MATHEWS PRACTICE,15848099,"1,326.61"
Department of Health,NHS Sheffield CCG,31/01/2017,C&M-GMS QOF Aspiration,PRC DELEGATED CO-COMMISSIONING,MATHEWS PRACTICE,15848099,"8,872.15"
Department of Health,NHS Sheffield CCG,31/01/2017,C&M-PMS Contract Value,PRC DELEGATED CO-COMMISSIONING,MEADOWHEAD GROUP PRACTICE,15610586,"-63,698.77"
Department of Health,NHS Sheffield CCG,31/01/2017,C&M-PMS GP Statutory Levy,PRC DELEGATED CO-COMMISSIONING,MEADOWHEAD GROUP PRACTICE,15610586,-293.7
Department of Health,NHS Sheffield CCG,31/01/2017,C&M-PMS Out of Hours Opt Outs,PRC DELEGATED CO-COMMISSIONING,MEADOWHEAD GROUP PRACTICE,15610586,-98.21
Department of Health,NHS Sheffield CCG,31/01/2017,C&M-PMS Voluntary Levy,PRC DELEGATED CO-COMMISSIONING,MEADOWHEAD GROUP PRACTICE,15610586,-48.95
Department of Health,NHS Sheffield CCG,31/01/2017,C&M-PMS Contract Value,PRC DELEGATED CO-COMMISSIONING,MEADOWHEAD GROUP PRACTICE,15637043,"135,022.58"
Department of Health,NHS Sheffield CCG,31/01/2017,C&M-PMS Out of Hours Opt Outs,PRC DELEGATED CO-COMMISSIONING,MEADOWHEAD GROUP PRACTICE,15637043,"-3,396.41"
Department of Health,NHS Sheffield CCG,31/01/2017,C&M-PMS PCO Locum Adop/Pat/Mat,PRC DELEGATED CO-COMMISSIONING,MEADOWHEAD GROUP PRACTICE,15637043,"8,048.00"
Department of Health,NHS Sheffield CCG,31/01/2017,C&M-PMS Prem Cost Rent,PRC DELEGATED CO-COMMISSIONING,MEADOWHEAD GROUP PRACTICE,15637043,"3,647.42"
Department of Health,NHS Sheffield CCG,31/01/2017,C&M-PMS Prem Notional Rent,PRC DELEGATED CO-COMMISSIONING,MEADOWHEAD GROUP PRACTICE,15637043,"3,358.33"
Department of Health,NHS Sheffield CCG,31/01/2017,C&M-PMS Prem Rates,PRC DELEGATED CO-COMMISSIONING,MEADOWHEAD GROUP PRACTICE,15637043,"1,663.46"
Department of Health,NHS Sheffield CCG,31/01/2017,C&M-PMS QOF Aspiration,PRC DELEGATED CO-COMMISSIONING,MEADOWHEAD GROUP PRACTICE,15637043,"9,587.98"
Department of Health,NHS Sheffield CCG,31/01/2017,C&M-GMS Cost of Drugs -Prescribing,LOCAL ENHANCED SERVICES,MEDICAL CENTRE CRYSTAL PEAKS,15848095,"2,416.82"
Department of Health,NHS Sheffield CCG,31/01/2017,C&M-GMS Global Sum,PRC DELEGATED CO-COMMISSIONING,MEDICAL CENTRE CRYSTAL PEAKS,15848095,"41,194.73"
Department of Health,NHS Sheffield CCG,31/01/2017,C&M-GMS MPIG Correction Factor,PRC DELEGATED CO-COMMISSIONING,MEDICAL CENTRE CRYSTAL PEAKS,15848095,"2,262.69"
Department of Health,NHS Sheffield CCG,31/01/2017,C&M-GMS Prem Notional Rent,PRC DELEGATED CO-COMMISSIONING,MEDICAL CENTRE CRYSTAL PEAKS,15848095,270
Department of Health,NHS Sheffield CCG,31/01/2017,C&M-GMS Prem Rates,PRC DELEGATED CO-COMMISSIONING,MEDICAL CENTRE CRYSTAL PEAKS,15848095,"2,037.70"
Department of Health,NHS Sheffield CCG,31/01/2017,C&M-GMS Prof Fees Prescribing,PRC DELEGATED CO-COMMISSIONING,MEDICAL CENTRE CRYSTAL PEAKS,15848095,885.06
Department of Health,NHS Sheffield CCG,31/01/2017,C&M-GMS QOF Aspiration,PRC DELEGATED CO-COMMISSIONING,MEDICAL CENTRE CRYSTAL PEAKS,15848095,"5,451.18"
Department of Health,NHS Sheffield CCG,31/01/2017,C&M-GMS Cost of Drugs -Prescribing,LOCAL ENHANCED SERVICES,MILL ROAD SURGERY SHEFFIELD,15848104,"2,282.18"
Department of Health,NHS Sheffield CCG,31/01/2017,C&M-GMS Global Sum,PRC DELEGATED CO-COMMISSIONING,MILL ROAD SURGERY SHEFFIELD,15848104,"35,689.08"
Department of Health,NHS Sheffield CCG,31/01/2017,C&M-GMS MPIG Correction Factor,PRC DELEGATED CO-COMMISSIONING,MILL ROAD SURGERY SHEFFIELD,15848104,244.08
Department of Health,NHS Sheffield CCG,31/01/2017,C&M-GMS Prem Notional Rent,PRC DELEGATED CO-COMMISSIONING,MILL ROAD SURGERY SHEFFIELD,15848104,"4,587.50"
Department of Health,NHS Sheffield CCG,31/01/2017,C&M-GMS Prem Rates,PRC DELEGATED CO-COMMISSIONING,MILL ROAD SURGERY SHEFFIELD,15848104,726
Department of Health,NHS Sheffield CCG,31/01/2017,C&M-GMS Prof Fees Prescribing,PRC DELEGATED CO-COMMISSIONING,MILL ROAD SURGERY SHEFFIELD,15848104,570
Department of Health,NHS Sheffield CCG,31/01/2017,C&M-GMS QOF Aspiration,PRC DELEGATED CO-COMMISSIONING,MILL ROAD SURGERY SHEFFIELD,15848104,"4,939.72"
Department of Health,NHS Sheffield CCG,31/01/2017,C&M-PMS Contract Value,PRC DELEGATED CO-COMMISSIONING,MOSBOROUGH HEALTH CENTRE,15610589,"-41,319.94"
Department of Health,NHS Sheffield CCG,31/01/2017,C&M-PMS GP Statutory Levy,PRC DELEGATED CO-COMMISSIONING,MOSBOROUGH HEALTH CENTRE,15610589,-196.92
Department of Health,NHS Sheffield CCG,31/01/2017,C&M-PMS Out of Hours Opt Outs,PRC DELEGATED CO-COMMISSIONING,MOSBOROUGH HEALTH CENTRE,15610589,-82.53
Department of Health,NHS Sheffield CCG,31/01/2017,C&M-PMS Voluntary Levy,PRC DELEGATED CO-COMMISSIONING,MOSBOROUGH HEALTH CENTRE,15610589,-32.82
Department of Health,NHS Sheffield CCG,31/01/2017,ME - PMS TPS Added Years Adj EEs,PRC DELEGATED CO-COMMISSIONING,MOSBOROUGH HEALTH CENTRE,15610589,-436.59
Department of Health,NHS Sheffield CCG,31/01/2017,C&M-PMS Baseline Adjustment,PRC DELEGATED CO-COMMISSIONING,MOSBOROUGH HEALTH CENTRE,15610590,"2,506.00"
Department of Health,NHS Sheffield CCG,31/01/2017,C&M-PMS Contract Value,PRC DELEGATED CO-COMMISSIONING,MOSBOROUGH HEALTH CENTRE,15610590,"84,974.99"
Department of Health,NHS Sheffield CCG,31/01/2017,C&M-PMS Out of Hours Opt Outs,PRC DELEGATED CO-COMMISSIONING,MOSBOROUGH HEALTH CENTRE,15610590,"-2,058.45"
Department of Health,NHS Sheffield CCG,31/01/2017,C&M-PMS Prem Notional Rent,PRC DELEGATED CO-COMMISSIONING,MOSBOROUGH HEALTH CENTRE,15610590,"4,091.67"
Department of Health,NHS Sheffield CCG,31/01/2017,C&M-PMS Prem Rates,PRC DELEGATED CO-COMMISSIONING,MOSBOROUGH HEALTH CENTRE,15610590,665.5
Department of Health,NHS Sheffield CCG,31/01/2017,C&M-PMS QOF Aspiration,PRC DELEGATED CO-COMMISSIONING,MOSBOROUGH HEALTH CENTRE,15610590,"5,470.61"
Department of Health,NHS Sheffield CCG,31/01/2017,C&M-PMS Contract Value,PRC DELEGATED CO-COMMISSIONING,NETHERGREEN SURGERY,15610591,"-55,388.98"
Department of Health,NHS Sheffield CCG,31/01/2017,C&M-PMS GP Statutory Levy,PRC DELEGATED CO-COMMISSIONING,NETHERGREEN SURGERY,15610591,-278.13
Department of Health,NHS Sheffield CCG,31/01/2017,C&M-PMS Out of Hours Opt Outs,PRC DELEGATED CO-COMMISSIONING,NETHERGREEN SURGERY,15610591,-78.78
Department of Health,NHS Sheffield CCG,31/01/2017,C&M-PMS Voluntary Levy,PRC DELEGATED CO-COMMISSIONING,NETHERGREEN SURGERY,15610591,-46.36
Department of Health,NHS Sheffield CCG,31/01/2017,ME - PMS TPS Added Years Adj EEs,PRC DELEGATED CO-COMMISSIONING,NETHERGREEN SURGERY,15610591,-255.16
Department of Health,NHS Sheffield CCG,31/01/2017,C&M-PMS Baseline Adjustment,PRC DELEGATED CO-COMMISSIONING,NETHERGREEN SURGERY,15610592,"3,753.08"
Department of Health,NHS Sheffield CCG,31/01/2017,C&M-PMS Contract Value,PRC DELEGATED CO-COMMISSIONING,NETHERGREEN SURGERY,15610592,"112,569.55"
Department of Health,NHS Sheffield CCG,31/01/2017,C&M-PMS Out of Hours Opt Outs,PRC DELEGATED CO-COMMISSIONING,NETHERGREEN SURGERY,15610592,"-2,712.81"
Department of Health,NHS Sheffield CCG,31/01/2017,C&M-PMS Prem Notional Rent,PRC DELEGATED CO-COMMISSIONING,NETHERGREEN SURGERY,15610592,"5,057.33"
Department of Health,NHS Sheffield CCG,31/01/2017,C&M-PMS Prem Rates,PRC DELEGATED CO-COMMISSIONING,NETHERGREEN SURGERY,15610592,"1,143.10"
Department of Health,NHS Sheffield CCG,31/01/2017,C&M-PMS Prem Water Rates,PRC DELEGATED CO-COMMISSIONING,NETHERGREEN SURGERY,15610592,227.14
Department of Health,NHS Sheffield CCG,31/01/2017,C&M-PMS QOF Aspiration,PRC DELEGATED CO-COMMISSIONING,NETHERGREEN SURGERY,15610592,"5,755.28"
Department of Health,NHS Sheffield CCG,31/01/2017,Cont Care-Physical Disab (<65),CHC ADULT FULLY FUNDED,NEVILLE HEALTH CARE LTD,15682049,"70,853.47"
Department of Health,NHS Sheffield CCG,31/01/2017,Cont Care-Physical Disab (65+),CHC ADULT FULLY FUNDED,NEVILLE HEALTH CARE LTD,15863122,"70,853.47"
Department of Health,NHS Sheffield CCG,31/01/2017,Clinical&Medical-Serv Recd-CCGs,CONTINUING HEALTHCARE ASSESSMENT & SUPPORT,NHS DONCASTER CCG,15907631,"49,491.25"
Department of Health,NHS Sheffield CCG,31/01/2017,C&M-GMS Prem Other,PRC DELEGATED CO-COMMISSIONING,NHS ENGLAND,15716290,"6,815.83"
Department of Health,NHS Sheffield CCG,31/01/2017,Contract- Refuse & Clinical Waste,PRC DELEGATED CO-COMMISSIONING,NHS ENGLAND,15716290,"34,893.10"
Department of Health,NHS Sheffield CCG,31/01/2017,Other Gen Supplies & Srv,PRC DELEGATED CO-COMMISSIONING,NHS ENGLAND,15716290,"43,549.00"
Department of Health,NHS Sheffield CCG,31/01/2017,Charges from CSU,BUSINESS INFORMATICS,NHS NORTH OF ENGLAND CSU,15855739,"30,083.00"
Department of Health,NHS Sheffield CCG,31/01/2017,Service Charge,RECHARGES NHS PROPERTY SERVICES LTD,NHS PROPERTY SERVICES LTD,15716300,"40,152.96"
Department of Health,NHS Sheffield CCG,31/01/2017,Service Charge,RECHARGES NHS PROPERTY SERVICES LTD,NHS PROPERTY SERVICES LTD,15716306,"57,427.65"
Department of Health,NHS Sheffield CCG,31/01/2017,C&M-GMS Cost of Drugs -Prescribing,LOCAL ENHANCED SERVICES,NORFOLK PARK HEALTH CENTRE,15848109,"1,673.30"
Department of Health,NHS Sheffield CCG,31/01/2017,C&M-GMS Global Sum,PRC DELEGATED CO-COMMISSIONING,NORFOLK PARK HEALTH CENTRE,15848109,"31,350.48"
Department of Health,NHS Sheffield CCG,31/01/2017,C&M-GMS MPIG Correction Factor,PRC DELEGATED CO-COMMISSIONING,NORFOLK PARK HEALTH CENTRE,15848109,"1,849.21"
Department of Health,NHS Sheffield CCG,31/01/2017,C&M-GMS Prem Healthcentre Rent,PRC DELEGATED CO-COMMISSIONING,NORFOLK PARK HEALTH CENTRE,15848109,"23,089.03"
Department of Health,NHS Sheffield CCG,31/01/2017,C&M-GMS Prof Fees Prescribing,PRC DELEGATED CO-COMMISSIONING,NORFOLK PARK HEALTH CENTRE,15848109,423.28
Department of Health,NHS Sheffield CCG,31/01/2017,C&M-GMS QOF Aspiration,PRC DELEGATED CO-COMMISSIONING,NORFOLK PARK HEALTH CENTRE,15848109,"3,691.39"
Department of Health,NHS Sheffield CCG,31/01/2017,Clinical&Medical-Commercial Sector,PATIENT TRANSPORT,NORTHERN TAXIS LTD,15624735,"161,646.60"
Department of Health,NHS Sheffield CCG,31/01/2017,C&M-GMS Cost of Drugs -Prescribing,LOCAL ENHANCED SERVICES,NORWOOD MEDICAL CENTRE SHEFFIELD,15868035,367.34
Department of Health,NHS Sheffield CCG,31/01/2017,C&M-GMS Global Sum,PRC DELEGATED CO-COMMISSIONING,NORWOOD MEDICAL CENTRE SHEFFIELD,15868035,"57,405.43"
Department of Health,NHS Sheffield CCG,31/01/2017,C&M-GMS Prem Notional Rent,PRC DELEGATED CO-COMMISSIONING,NORWOOD MEDICAL CENTRE SHEFFIELD,15868035,"5,187.50"
Department of Health,NHS Sheffield CCG,31/01/2017,C&M-GMS Prem Rates,PRC DELEGATED CO-COMMISSIONING,NORWOOD MEDICAL CENTRE SHEFFIELD,15868035,981.58
Department of Health,NHS Sheffield CCG,31/01/2017,C&M-GMS Prof Fees Prescribing,PRC DELEGATED CO-COMMISSIONING,NORWOOD MEDICAL CENTRE SHEFFIELD,15868035,129.88
Department of Health,NHS Sheffield CCG,31/01/2017,C&M-GMS QOF Aspiration,PRC DELEGATED CO-COMMISSIONING,NORWOOD MEDICAL CENTRE SHEFFIELD,15868035,"7,632.11"
Department of Health,NHS Sheffield CCG,31/01/2017,ME - GMS GP Prior Year ERs,PRC DELEGATED CO-COMMISSIONING,NORWOOD MEDICAL CENTRE SHEFFIELD,15868035,"1,525.36"
Department of Health,NHS Sheffield CCG,31/01/2017,ME-GMS GP Prior Year EEs,PRC DELEGATED CO-COMMISSIONING,NORWOOD MEDICAL CENTRE SHEFFIELD,15868035,597.36
Department of Health,NHS Sheffield CCG,31/01/2017,Rent,URGENT CARE,ONE MEDICARE,15819810,"57,656.00"
Department of Health,NHS Sheffield CCG,31/01/2017,Rent,URGENT CARE,ONE MEDICARE,15819852,"-57,656.00"
Department of Health,NHS Sheffield CCG,31/01/2017,Clinical&Medical-Independent Sector,ACUTE COMMISSIONING,ONEHEALTH GROUP,15680550,"90,000.00"
Department of Health,NHS Sheffield CCG,31/01/2017,C&M-GMS Cost of Drugs -Dispensing,LOCAL ENHANCED SERVICES,OUGHTIBRIDGE SURGERY,15848115,"-18,720.25"
Department of Health,NHS Sheffield CCG,31/01/2017,C&M-GMS GP Statutory Levy,PRC DELEGATED CO-COMMISSIONING,OUGHTIBRIDGE SURGERY,15848115,-175.38
Department of Health,NHS Sheffield CCG,31/01/2017,C&M-GMS PrscChrgsCll&RmttdbyGPCntra,PRC DELEGATED CO-COMMISSIONING,OUGHTIBRIDGE SURGERY,15848115,-596.4
Department of Health,NHS Sheffield CCG,31/01/2017,C&M-GMS Voluntary Levy,PRC DELEGATED CO-COMMISSIONING,OUGHTIBRIDGE SURGERY,15848115,-29.23
Department of Health,NHS Sheffield CCG,31/01/2017,ME - GMS TPS Added Years Adj EEs,PRC DELEGATED CO-COMMISSIONING,OUGHTIBRIDGE SURGERY,15848115,-694.7
Department of Health,NHS Sheffield CCG,31/01/2017,C&M-GMS Cost of Drugs -Dispensing,LOCAL ENHANCED SERVICES,OUGHTIBRIDGE SURGERY,15848116,"39,678.82"
Department of Health,NHS Sheffield CCG,31/01/2017,C&M-GMS Global Sum,PRC DELEGATED CO-COMMISSIONING,OUGHTIBRIDGE SURGERY,15848116,"38,755.75"
Department of Health,NHS Sheffield CCG,31/01/2017,C&M-GMS Prem Notional Rent,PRC DELEGATED CO-COMMISSIONING,OUGHTIBRIDGE SURGERY,15848116,"3,888.33"
Department of Health,NHS Sheffield CCG,31/01/2017,C&M-GMS Prem Rates,PRC DELEGATED CO-COMMISSIONING,OUGHTIBRIDGE SURGERY,15848116,"1,652.53"
Department of Health,NHS Sheffield CCG,31/01/2017,C&M-GMS Prem Water Rates,PRC DELEGATED CO-COMMISSIONING,OUGHTIBRIDGE SURGERY,15848116,112.74
Department of Health,NHS Sheffield CCG,31/01/2017,C&M-GMS Prof Fees Dispensing,PRC DELEGATED CO-COMMISSIONING,OUGHTIBRIDGE SURGERY,15848116,"5,875.32"
Department of Health,NHS Sheffield CCG,31/01/2017,C&M-GMS PrscrptnChrgsColl&RmttdbyGP,LOCAL ENHANCED SERVICES,OUGHTIBRIDGE SURGERY,15848116,596.4
Department of Health,NHS Sheffield CCG,31/01/2017,C&M-GMS QOF Aspiration,PRC DELEGATED CO-COMMISSIONING,OUGHTIBRIDGE SURGERY,15848116,"4,273.35"
Department of Health,NHS Sheffield CCG,31/01/2017,C&M-PMS Contract Value,PRC DELEGATED CO-COMMISSIONING,OWLTHORPE MEDICAL CENTRE,15610593,"-23,535.41"
Department of Health,NHS Sheffield CCG,31/01/2017,C&M-PMS GP Statutory Levy,PRC DELEGATED CO-COMMISSIONING,OWLTHORPE MEDICAL CENTRE,15610593,-140.16
Department of Health,NHS Sheffield CCG,31/01/2017,C&M-PMS Out of Hours Opt Outs,PRC DELEGATED CO-COMMISSIONING,OWLTHORPE MEDICAL CENTRE,15610593,-424
Department of Health,NHS Sheffield CCG,31/01/2017,C&M-PMS Voluntary Levy,PRC DELEGATED CO-COMMISSIONING,OWLTHORPE MEDICAL CENTRE,15610593,-23.36
Department of Health,NHS Sheffield CCG,31/01/2017,C&M-PMS Baseline Adjustment,PRC DELEGATED CO-COMMISSIONING,OWLTHORPE MEDICAL CENTRE,15610594,"2,999.33"
Department of Health,NHS Sheffield CCG,31/01/2017,C&M-PMS Contract Value,PRC DELEGATED CO-COMMISSIONING,OWLTHORPE MEDICAL CENTRE,15610594,"54,032.01"
Department of Health,NHS Sheffield CCG,31/01/2017,C&M-PMS Out of Hours Opt Outs,PRC DELEGATED CO-COMMISSIONING,OWLTHORPE MEDICAL CENTRE,15610594,"-1,088.92"
Department of Health,NHS Sheffield CCG,31/01/2017,C&M-PMS Prem Actual Rent,PRC DELEGATED CO-COMMISSIONING,OWLTHORPE MEDICAL CENTRE,15610594,"7,436.33"
Department of Health,NHS Sheffield CCG,31/01/2017,C&M-PMS Prem Rates,PRC DELEGATED CO-COMMISSIONING,OWLTHORPE MEDICAL CENTRE,15610594,981.58
Department of Health,NHS Sheffield CCG,31/01/2017,C&M-PMS QOF Aspiration,PRC DELEGATED CO-COMMISSIONING,OWLTHORPE MEDICAL CENTRE,15610594,"3,175.78"
Department of Health,NHS Sheffield CCG,31/01/2017,C&M-PMS Contract Value,PRC DELEGATED CO-COMMISSIONING,PAGE HALL MEDICAL CENTRE,15610595,"-56,565.26"
Department of Health,NHS Sheffield CCG,31/01/2017,C&M-PMS GP Statutory Levy,PRC DELEGATED CO-COMMISSIONING,PAGE HALL MEDICAL CENTRE,15610595,-224.19
Department of Health,NHS Sheffield CCG,31/01/2017,C&M-PMS Out of Hours Opt Outs,PRC DELEGATED CO-COMMISSIONING,PAGE HALL MEDICAL CENTRE,15610595,-64.32
Department of Health,NHS Sheffield CCG,31/01/2017,C&M-PMS Voluntary Levy,PRC DELEGATED CO-COMMISSIONING,PAGE HALL MEDICAL CENTRE,15610595,-37.37
Department of Health,NHS Sheffield CCG,31/01/2017,ME - PMS TPS Added Years Adj EEs,PRC DELEGATED CO-COMMISSIONING,PAGE HALL MEDICAL CENTRE,15610595,-605.25
Department of Health,NHS Sheffield CCG,31/01/2017,C&M-PMS Baseline Adjustment,PRC DELEGATED CO-COMMISSIONING,PAGE HALL MEDICAL CENTRE,15610596,"10,782.17"
Department of Health,NHS Sheffield CCG,31/01/2017,C&M-PMS Contract Value,PRC DELEGATED CO-COMMISSIONING,PAGE HALL MEDICAL CENTRE,15610596,"106,729.60"
Department of Health,NHS Sheffield CCG,31/01/2017,C&M-PMS Out of Hours Opt Outs,PRC DELEGATED CO-COMMISSIONING,PAGE HALL MEDICAL CENTRE,15610596,"-2,386.53"
Department of Health,NHS Sheffield CCG,31/01/2017,C&M-PMS Prem Notional Rent,PRC DELEGATED CO-COMMISSIONING,PAGE HALL MEDICAL CENTRE,15610596,"4,683.33"
Department of Health,NHS Sheffield CCG,31/01/2017,C&M-PMS Prem Rates,PRC DELEGATED CO-COMMISSIONING,PAGE HALL MEDICAL CENTRE,15610596,762.3
Department of Health,NHS Sheffield CCG,31/01/2017,C&M-PMS QOF Aspiration,PRC DELEGATED CO-COMMISSIONING,PAGE HALL MEDICAL CENTRE,15610596,"4,608.67"
Department of Health,NHS Sheffield CCG,31/01/2017,C&M-PMS Contract Value,PRC DELEGATED CO-COMMISSIONING,PARK HEALTH CENTRE,15610597,"-42,031.14"
Department of Health,NHS Sheffield CCG,31/01/2017,C&M-PMS GP Statutory Levy,PRC DELEGATED CO-COMMISSIONING,PARK HEALTH CENTRE,15610597,-158.97
Department of Health,NHS Sheffield CCG,31/01/2017,C&M-PMS Out of Hours Opt Outs,PRC DELEGATED CO-COMMISSIONING,PARK HEALTH CENTRE,15610597,-43.69
Department of Health,NHS Sheffield CCG,31/01/2017,C&M-PMS Voluntary Levy,PRC DELEGATED CO-COMMISSIONING,PARK HEALTH CENTRE,15610597,-26.5
Department of Health,NHS Sheffield CCG,31/01/2017,C&M-PMS Baseline Adjustment,PRC DELEGATED CO-COMMISSIONING,PARK HEALTH CENTRE,15610598,"6,580.33"
Department of Health,NHS Sheffield CCG,31/01/2017,C&M-PMS Contract Value,PRC DELEGATED CO-COMMISSIONING,PARK HEALTH CENTRE,15610598,"81,022.21"
Department of Health,NHS Sheffield CCG,31/01/2017,C&M-PMS Out of Hours Opt Outs,PRC DELEGATED CO-COMMISSIONING,PARK HEALTH CENTRE,15610598,"-1,863.46"
Department of Health,NHS Sheffield CCG,31/01/2017,C&M-PMS Prem Notional Rent,PRC DELEGATED CO-COMMISSIONING,PARK HEALTH CENTRE,15610598,"6,000.00"
Department of Health,NHS Sheffield CCG,31/01/2017,C&M-PMS Prem Rates,PRC DELEGATED CO-COMMISSIONING,PARK HEALTH CENTRE,15610598,701.8
Department of Health,NHS Sheffield CCG,31/01/2017,C&M-PMS QOF Aspiration,PRC DELEGATED CO-COMMISSIONING,PARK HEALTH CENTRE,15610598,"3,864.73"
Department of Health,NHS Sheffield CCG,31/01/2017,C&M-PMS Contract Value,PRC DELEGATED CO-COMMISSIONING,PITSMOOR SURGERY,15610599,"-63,166.00"
Department of Health,NHS Sheffield CCG,31/01/2017,C&M-PMS GP Statutory Levy,PRC DELEGATED CO-COMMISSIONING,PITSMOOR SURGERY,15610599,-282.12
Department of Health,NHS Sheffield CCG,31/01/2017,C&M-PMS Out of Hours Opt Outs,PRC DELEGATED CO-COMMISSIONING,PITSMOOR SURGERY,15610599,-220.21
Department of Health,NHS Sheffield CCG,31/01/2017,C&M-PMS Voluntary Levy,PRC DELEGATED CO-COMMISSIONING,PITSMOOR SURGERY,15610599,-47.02
Department of Health,NHS Sheffield CCG,31/01/2017,C&M-PMS Contract Value,PRC DELEGATED CO-COMMISSIONING,PITSMOOR SURGERY,15610600,"135,969.90"
Department of Health,NHS Sheffield CCG,31/01/2017,C&M-PMS DES Learn Dsblty Hlth Chk,PRC DELEGATED CO-COMMISSIONING,PITSMOOR SURGERY,15610600,"3,248.00"
Department of Health,NHS Sheffield CCG,31/01/2017,C&M-PMS Out of Hours Opt Outs,PRC DELEGATED CO-COMMISSIONING,PITSMOOR SURGERY,15610600,"-3,375.08"
Department of Health,NHS Sheffield CCG,31/01/2017,C&M-PMS Prem Notional Rent,PRC DELEGATED CO-COMMISSIONING,PITSMOOR SURGERY,15610600,"9,479.17"
Department of Health,NHS Sheffield CCG,31/01/2017,C&M-PMS QOF Aspiration,PRC DELEGATED CO-COMMISSIONING,PITSMOOR SURGERY,15610600,"6,765.92"
Department of Health,NHS Sheffield CCG,31/01/2017,C&M-PMS Contract Value,PRC DELEGATED CO-COMMISSIONING,PORTER BROOK MEDICAL CENTRE,15610601,"-156,325.06"
Department of Health,NHS Sheffield CCG,31/01/2017,C&M-PMS GP Statutory Levy,PRC DELEGATED CO-COMMISSIONING,PORTER BROOK MEDICAL CENTRE,15610601,-870.09
Department of Health,NHS Sheffield CCG,31/01/2017,C&M-PMS Out of Hours Opt Outs,PRC DELEGATED CO-COMMISSIONING,PORTER BROOK MEDICAL CENTRE,15610601,-828.54
Department of Health,NHS Sheffield CCG,31/01/2017,C&M-PMS Voluntary Levy,PRC DELEGATED CO-COMMISSIONING,PORTER BROOK MEDICAL CENTRE,15610601,-145.02
Department of Health,NHS Sheffield CCG,31/01/2017,C&M-PMS Baseline Adjustment,PRC DELEGATED CO-COMMISSIONING,PORTER BROOK MEDICAL CENTRE,15610602,"10,224.25"
Department of Health,NHS Sheffield CCG,31/01/2017,C&M-PMS Contract Value,PRC DELEGATED CO-COMMISSIONING,PORTER BROOK MEDICAL CENTRE,15610602,"310,977.94"
Department of Health,NHS Sheffield CCG,31/01/2017,C&M-PMS Out of Hours Opt Outs,PRC DELEGATED CO-COMMISSIONING,PORTER BROOK MEDICAL CENTRE,15610602,"-6,732.92"
Department of Health,NHS Sheffield CCG,31/01/2017,C&M-PMS Prem Actual Rent,PRC DELEGATED CO-COMMISSIONING,PORTER BROOK MEDICAL CENTRE,15610602,"1,333.33"
Department of Health,NHS Sheffield CCG,31/01/2017,C&M-PMS Prem Notional Rent,PRC DELEGATED CO-COMMISSIONING,PORTER BROOK MEDICAL CENTRE,15610602,"9,559.58"
Department of Health,NHS Sheffield CCG,31/01/2017,C&M-PMS Prem Rates,PRC DELEGATED CO-COMMISSIONING,PORTER BROOK MEDICAL CENTRE,15610602,929.2
Department of Health,NHS Sheffield CCG,31/01/2017,C&M-PMS QOF Aspiration,PRC DELEGATED CO-COMMISSIONING,PORTER BROOK MEDICAL CENTRE,15610602,"8,138.32"
Department of Health,NHS Sheffield CCG,31/01/2017,External Consultancy Fees,REVIEW OF FINANCIAL STRATEGY,PRICEWATERHOUSECOOPERS LLP,15680352,"54,000.00"
Department of Health,NHS Sheffield CCG,31/01/2017,External Consultancy Fees,REVIEW OF FINANCIAL STRATEGY,PRICEWATERHOUSECOOPERS LLP,15680361,"57,830.40"
Department of Health,NHS Sheffield CCG,31/01/2017,C&M-GMS LES Basket of Procedures,LOCAL ENHANCED SERVICES,PRIMARY CARE SHEFFIELD LTD,15680318,"45,555.00"
Department of Health,NHS Sheffield CCG,31/01/2017,C&M-GMS LES Basket of Procedures,LOCAL ENHANCED SERVICES,PRIMARY CARE SHEFFIELD LTD,15682264,"27,375.00"
Department of Health,NHS Sheffield CCG,31/01/2017,C&M-PMS Baseline Adjustment,PRC DELEGATED CO-COMMISSIONING,RICHMOND MEDICAL CENTRE,15610603,"3,604.75"
Department of Health,NHS Sheffield CCG,31/01/2017,C&M-PMS Contract Value,PRC DELEGATED CO-COMMISSIONING,RICHMOND MEDICAL CENTRE,15610603,"112,617.46"
Department of Health,NHS Sheffield CCG,31/01/2017,C&M-PMS Out of Hours Opt Outs,PRC DELEGATED CO-COMMISSIONING,RICHMOND MEDICAL CENTRE,15610603,"-2,736.08"
Department of Health,NHS Sheffield CCG,31/01/2017,C&M-PMS Prem Notional Rent,PRC DELEGATED CO-COMMISSIONING,RICHMOND MEDICAL CENTRE,15610603,"4,520.00"
Department of Health,NHS Sheffield CCG,31/01/2017,C&M-PMS Prem Rates,PRC DELEGATED CO-COMMISSIONING,RICHMOND MEDICAL CENTRE,15610603,"1,018.85"
Department of Health,NHS Sheffield CCG,31/01/2017,C&M-PMS QOF Aspiration,PRC DELEGATED CO-COMMISSIONING,RICHMOND MEDICAL CENTRE,15610603,"7,024.93"
Department of Health,NHS Sheffield CCG,31/01/2017,C&M-PMS Contract Value,PRC DELEGATED CO-COMMISSIONING,RICHMOND MEDICAL CENTRE,15637044,"-55,053.34"
Department of Health,NHS Sheffield CCG,31/01/2017,C&M-PMS GP Statutory Levy,PRC DELEGATED CO-COMMISSIONING,RICHMOND MEDICAL CENTRE,15637044,-253.11
Department of Health,NHS Sheffield CCG,31/01/2017,C&M-PMS Out of Hours Opt Outs,PRC DELEGATED CO-COMMISSIONING,RICHMOND MEDICAL CENTRE,15637044,-90.71
Department of Health,NHS Sheffield CCG,31/01/2017,C&M-PMS Voluntary Levy,PRC DELEGATED CO-COMMISSIONING,RICHMOND MEDICAL CENTRE,15637044,-42.19
Department of Health,NHS Sheffield CCG,31/01/2017,ME - PMS GP Prior Year ERs,PRC DELEGATED CO-COMMISSIONING,RICHMOND MEDICAL CENTRE,15637044,"-4,992.98"
Department of Health,NHS Sheffield CCG,31/01/2017,ME - PMS TPS Added Years Adj EEs,PRC DELEGATED CO-COMMISSIONING,RICHMOND MEDICAL CENTRE,15637044,-325.2
Department of Health,NHS Sheffield CCG,31/01/2017,ME-PMS GP Prior Year AVCs,PRC DELEGATED CO-COMMISSIONING,RICHMOND MEDICAL CENTRE,15637044,"-6,504.00"
Department of Health,NHS Sheffield CCG,31/01/2017,ME-PMS GP Prior Year EEs,PRC DELEGATED CO-COMMISSIONING,RICHMOND MEDICAL CENTRE,15637044,"-4,873.01"
Department of Health,NHS Sheffield CCG,31/01/2017,Cont Care-Funded Nursing Care Allow,FUNDED NURSING CARE,ROSEBERRY CARE CENTRES,15680598,"27,790.03"
Department of Health,NHS Sheffield CCG,31/01/2017,Cont Care-Funded Nursing Care Allow,FUNDED NURSING CARE,ROSEBERRY CARE CENTRES,15680603,"36,056.22"
Department of Health,NHS Sheffield CCG,31/01/2017,Cont Care-Physical Disab (<65),CHC ADULT FULLY FUNDED,ROSEBERRY CARE CENTRES,15680770,"34,170.51"
Department of Health,NHS Sheffield CCG,31/01/2017,Cont Care-Physical Disab (<65),CHC ADULT FULLY FUNDED,ROSEBERRY CARE CENTRES,15682117,"25,268.41"
Department of Health,NHS Sheffield CCG,31/01/2017,Hcare Srv Rec Fdtn Trust-Contract Baseline,ACUTE COMMISSIONING,ROTHERHAM NHS FOUNDATION TRUST,15590522,"435,933.00"
Department of Health,NHS Sheffield CCG,31/01/2017,C&M-PMS Contract Value,PRC DELEGATED CO-COMMISSIONING,RUSTLINGS ROAD MEDICAL CENTRE,15610606,"-25,113.42"
Department of Health,NHS Sheffield CCG,31/01/2017,C&M-PMS GP Statutory Levy,PRC DELEGATED CO-COMMISSIONING,RUSTLINGS ROAD MEDICAL CENTRE,15610606,-138.42
Department of Health,NHS Sheffield CCG,31/01/2017,C&M-PMS Out of Hours Opt Outs,PRC DELEGATED CO-COMMISSIONING,RUSTLINGS ROAD MEDICAL CENTRE,15610606,-58.51
Department of Health,NHS Sheffield CCG,31/01/2017,C&M-PMS Voluntary Levy,PRC DELEGATED CO-COMMISSIONING,RUSTLINGS ROAD MEDICAL CENTRE,15610606,-23.07
Department of Health,NHS Sheffield CCG,31/01/2017,C&M-PMS Baseline Adjustment,PRC DELEGATED CO-COMMISSIONING,RUSTLINGS ROAD MEDICAL CENTRE,15610607,"2,471.83"
Department of Health,NHS Sheffield CCG,31/01/2017,C&M-PMS Contract Value,PRC DELEGATED CO-COMMISSIONING,RUSTLINGS ROAD MEDICAL CENTRE,15610607,"50,799.79"
Department of Health,NHS Sheffield CCG,31/01/2017,C&M-PMS Out of Hours Opt Outs,PRC DELEGATED CO-COMMISSIONING,RUSTLINGS ROAD MEDICAL CENTRE,15610607,"-1,200.08"
Department of Health,NHS Sheffield CCG,31/01/2017,C&M-PMS Prem Notional Rent,PRC DELEGATED CO-COMMISSIONING,RUSTLINGS ROAD MEDICAL CENTRE,15610607,"1,167.92"
Department of Health,NHS Sheffield CCG,31/01/2017,C&M-PMS Prem Rates,PRC DELEGATED CO-COMMISSIONING,RUSTLINGS ROAD MEDICAL CENTRE,15610607,435.6
Department of Health,NHS Sheffield CCG,31/01/2017,C&M-PMS Prem Water Rates,PRC DELEGATED CO-COMMISSIONING,RUSTLINGS ROAD MEDICAL CENTRE,15610607,47.84
Department of Health,NHS Sheffield CCG,31/01/2017,C&M-PMS QOF Aspiration,PRC DELEGATED CO-COMMISSIONING,RUSTLINGS ROAD MEDICAL CENTRE,15610607,"2,262.57"
Department of Health,NHS Sheffield CCG,31/01/2017,C&M-PMS Baseline Adjustment,PRC DELEGATED CO-COMMISSIONING,SELBORNE ROAD MEDICAL CENTRE,15610605,"1,263.08"
Department of Health,NHS Sheffield CCG,31/01/2017,C&M-PMS Contract Value,PRC DELEGATED CO-COMMISSIONING,SELBORNE ROAD MEDICAL CENTRE,15610605,"35,871.50"
Department of Health,NHS Sheffield CCG,31/01/2017,C&M-PMS Out of Hours Opt Outs,PRC DELEGATED CO-COMMISSIONING,SELBORNE ROAD MEDICAL CENTRE,15610605,-865.04
Department of Health,NHS Sheffield CCG,31/01/2017,C&M-PMS Prem Notional Rent,PRC DELEGATED CO-COMMISSIONING,SELBORNE ROAD MEDICAL CENTRE,15610605,"1,677.08"
Department of Health,NHS Sheffield CCG,31/01/2017,C&M-PMS Prem Rates,PRC DELEGATED CO-COMMISSIONING,SELBORNE ROAD MEDICAL CENTRE,15610605,592.9
Department of Health,NHS Sheffield CCG,31/01/2017,C&M-PMS QOF Aspiration,PRC DELEGATED CO-COMMISSIONING,SELBORNE ROAD MEDICAL CENTRE,15610605,"2,134.94"
Department of Health,NHS Sheffield CCG,31/01/2017,Cont Care-Physical Disab (<65),CHC ADULT FULLY FUNDED,SEVEN HILLS NURSING HOME,15682106,"61,198.97"
Department of Health,NHS Sheffield CCG,31/01/2017,C&M-GMS Cost of Drugs -Prescribing,LOCAL ENHANCED SERVICES,SHARROW LANE MEDICAL CENTRE,15848121,"1,198.07"
Department of Health,NHS Sheffield CCG,31/01/2017,C&M-GMS Global Sum,PRC DELEGATED CO-COMMISSIONING,SHARROW LANE MEDICAL CENTRE,15848121,"20,299.90"
Department of Health,NHS Sheffield CCG,31/01/2017,C&M-GMS MPIG Correction Factor,PRC DELEGATED CO-COMMISSIONING,SHARROW LANE MEDICAL CENTRE,15848121,"3,920.64"
Department of Health,NHS Sheffield CCG,31/01/2017,C&M-GMS Prem Notional Rent,PRC DELEGATED CO-COMMISSIONING,SHARROW LANE MEDICAL CENTRE,15848121,"2,658.33"
Department of Health,NHS Sheffield CCG,31/01/2017,C&M-GMS Prem Rates,PRC DELEGATED CO-COMMISSIONING,SHARROW LANE MEDICAL CENTRE,15848121,"1,192.80"
Department of Health,NHS Sheffield CCG,31/01/2017,C&M-GMS Prem Water Rates,PRC DELEGATED CO-COMMISSIONING,SHARROW LANE MEDICAL CENTRE,15848121,94.88
Department of Health,NHS Sheffield CCG,31/01/2017,C&M-GMS Prof Fees Prescribing,PRC DELEGATED CO-COMMISSIONING,SHARROW LANE MEDICAL CENTRE,15848121,233.29
Department of Health,NHS Sheffield CCG,31/01/2017,C&M-GMS QOF Aspiration,PRC DELEGATED CO-COMMISSIONING,SHARROW LANE MEDICAL CENTRE,15848121,"2,466.40"
Department of Health,NHS Sheffield CCG,31/01/2017,Hcare Srv Rec Fdtn Trust-CQUIN,ACUTE CHILDRENS SERVICES,SHEFFIELD CHILDRENS NHS FOUNDATION TRUST,15590455,"32,898.00"
Department of Health,NHS Sheffield CCG,31/01/2017,Hcare Srv Rec Fdtn Trust-CQUIN,COMMUNITY SERVICES,SHEFFIELD CHILDRENS NHS FOUNDATION TRUST,15590455,"4,084.00"
Department of Health,NHS Sheffield CCG,31/01/2017,Hcare Srv Rec Fdtn Trust-Contract Baseline,ACUTE CHILDRENS SERVICES,SHEFFIELD CHILDRENS NHS FOUNDATION TRUST,15590455,"223,874.82"
Department of Health,NHS Sheffield CCG,31/01/2017,Hcare Srv Rec Fdtn Trust-Contract Baseline,CHILD AND ADOLESCENT MENTAL HEALTH,SHEFFIELD CHILDRENS NHS FOUNDATION TRUST,15590455,"351,912.00"
Department of Health,NHS Sheffield CCG,31/01/2017,Hcare Srv Rec Fdtn Trust-Contract Baseline,COMMUNITY SERVICES,SHEFFIELD CHILDRENS NHS FOUNDATION TRUST,15590455,"326,732.00"
Department of Health,NHS Sheffield CCG,31/01/2017,Hcare Srv Rec Fdtn Trust-Contract Baseline,HIGH COST DRUGS,SHEFFIELD CHILDRENS NHS FOUNDATION TRUST,15590455,"58,683.00"
Department of Health,NHS Sheffield CCG,31/01/2017,Hcare Srv Rec Fdtn Trust-Contract Baseline,MENTAL HEALTH CONTRACTS,SHEFFIELD CHILDRENS NHS FOUNDATION TRUST,15590455,"3,332.00"
Department of Health,NHS Sheffield CCG,31/01/2017,Hcare Srv Rec Fdtn Trust-Contract Baseline,PLANNED CARE,SHEFFIELD CHILDRENS NHS FOUNDATION TRUST,15590455,"1,046,640.00"
Department of Health,NHS Sheffield CCG,31/01/2017,Hcare Srv Rec Fdtn Trust-Contract Baseline,SAFEGUARDING,SHEFFIELD CHILDRENS NHS FOUNDATION TRUST,15590455,"27,458.00"
Department of Health,NHS Sheffield CCG,31/01/2017,Hcare Srv Rec Fdtn Trust-Contract Baseline,URGENT CARE,SHEFFIELD CHILDRENS NHS FOUNDATION TRUST,15590455,"965,475.00"
Department of Health,NHS Sheffield CCG,31/01/2017,Hcare Srv Rec Fdtn Trust-Contract Baseline,ACUTE CHILDRENS SERVICES,SHEFFIELD CHILDRENS NHS FOUNDATION TRUST,15819859,"-30,041.00"
Department of Health,NHS Sheffield CCG,31/01/2017,Cont Care-Physical Disab (65+),CHC ADULT FULLY FUNDED,SHEFFIELD CITY COUNCIL,15819881,"572,436.98"
Department of Health,NHS Sheffield CCG,31/01/2017,Clinical&Medical-Othe Public Sector,COMMUNITY SERVICES,SHEFFIELD CITY COUNCIL,15856600,"26,741.00"
Department of Health,NHS Sheffield CCG,31/01/2017,Clinical&Medical-Othe Public Sector,MENTAL HEALTH SERVICES - COLLABORATIVE COMMISSIONING,SHEFFIELD CITY COUNCIL,15856600,"16,919.00"
Department of Health,NHS Sheffield CCG,31/01/2017,Clinical&Medical-Othe Public Sector,REABLEMENT,SHEFFIELD CITY COUNCIL,15856600,"160,417.00"
Department of Health,NHS Sheffield CCG,31/01/2017,Clinical&Medical-Othe Public Sector,SAFEGUARDING,SHEFFIELD CITY COUNCIL,15856600,"26,425.00"
Department of Health,NHS Sheffield CCG,31/01/2017,Soc Care-Joint H&C Teams/Working,INTERMEDIATE CARE,SHEFFIELD CITY COUNCIL,15856600,"94,727.00"
Department of Health,NHS Sheffield CCG,31/01/2017,Soc Care-Learn Disab Servs,LEARNING DIFFICULTIES,SHEFFIELD CITY COUNCIL,15856600,"216,667.00"
Department of Health,NHS Sheffield CCG,31/01/2017,Soc Care-Other Soc Care,COMMUNITY SERVICES,SHEFFIELD CITY COUNCIL,15856600,"1,051,083.00"
Department of Health,NHS Sheffield CCG,31/01/2017,Soc Care-Re-ablement services,REABLEMENT,SHEFFIELD CITY COUNCIL,15856600,"56,721.00"
Department of Health,NHS Sheffield CCG,31/01/2017,Soc Care-Support Prim Care,COMMUNITY SERVICES,SHEFFIELD CITY COUNCIL,15856600,"41,667.00"
Department of Health,NHS Sheffield CCG,31/01/2017,Cont Care-Learning Disab(<65),CHC ADULT FULLY FUNDED,SHEFFIELD CITY COUNCIL,15907886,"66,787.50"
Department of Health,NHS Sheffield CCG,31/01/2017,C&M-APMS Contract Value,PRC DELEGATED CO-COMMISSIONING,SHEFFIELD HEALTH & SOCIAL CARE NHS FOUNDATION TRUST,15611555,"116,428.79"
Department of Health,NHS Sheffield CCG,31/01/2017,C&M-APMS OOH Opt Outs,PRC DELEGATED CO-COMMISSIONING,SHEFFIELD HEALTH & SOCIAL CARE NHS FOUNDATION TRUST,15611555,59.75
Department of Health,NHS Sheffield CCG,31/01/2017,C&M-APMS Prem Other,PRC DELEGATED CO-COMMISSIONING,SHEFFIELD HEALTH & SOCIAL CARE NHS FOUNDATION TRUST,15611555,"14,988.09"
Department of Health,NHS Sheffield CCG,31/01/2017,C&M-PMS Out of Hours Opt Outs,PRC DELEGATED CO-COMMISSIONING,SHEFFIELD HEALTH & SOCIAL CARE NHS FOUNDATION TRUST,15611555,2.25
Department of Health,NHS Sheffield CCG,31/01/2017,C&M-PMS QOF Aspiration,PRC DELEGATED CO-COMMISSIONING,SHEFFIELD HEALTH & SOCIAL CARE NHS FOUNDATION TRUST,15611555,"12,212.65"
Department of Health,NHS Sheffield CCG,31/01/2017,C&M-APMS Contract Value,PRC DELEGATED CO-COMMISSIONING,SHEFFIELD HEALTH & SOCIAL CARE NHS FOUNDATION TRUST,15611557,"28,392.36"
Department of Health,NHS Sheffield CCG,31/01/2017,C&M-APMS OOH Opt Outs,PRC DELEGATED CO-COMMISSIONING,SHEFFIELD HEALTH & SOCIAL CARE NHS FOUNDATION TRUST,15611557,62.51
Department of Health,NHS Sheffield CCG,31/01/2017,C&M-PMS Out of Hours Opt Outs,PRC DELEGATED CO-COMMISSIONING,SHEFFIELD HEALTH & SOCIAL CARE NHS FOUNDATION TRUST,15611557,34.66
Department of Health,NHS Sheffield CCG,31/01/2017,Hcare Srv Rec Fdtn Trust-CQUIN,MENTAL HEALTH CONTRACTS,SHEFFIELD HEALTH & SOCIAL CARE NHS FOUNDATION TRUST,15682275,"147,998.90"
Department of Health,NHS Sheffield CCG,31/01/2017,Hcare Srv Rec Fdtn Trust-Contract Baseline,IMPROVING ACCESS TO PSYCHOLOGICAL THERAPIES,SHEFFIELD HEALTH & SOCIAL CARE NHS FOUNDATION TRUST,15682275,"387,257.30"
Department of Health,NHS Sheffield CCG,31/01/2017,Hcare Srv Rec Fdtn Trust-Contract Baseline,LEARNING DIFFICULTIES,SHEFFIELD HEALTH & SOCIAL CARE NHS FOUNDATION TRUST,15682275,"418,549.20"
Department of Health,NHS Sheffield CCG,31/01/2017,Hcare Srv Rec Fdtn Trust-Contract Baseline,MENTAL HEALTH CONTRACTS,SHEFFIELD HEALTH & SOCIAL CARE NHS FOUNDATION TRUST,15682275,"3,771,697.90"
Department of Health,NHS Sheffield CCG,31/01/2017,Hcare Srv Rec Fdtn Trust-Contract Baseline,MENTAL HEALTH SERVICES - SPECIALIST SERVICES,SHEFFIELD HEALTH & SOCIAL CARE NHS FOUNDATION TRUST,15682275,"1,339,371.04"
Department of Health,NHS Sheffield CCG,31/01/2017,Hcare Srv Rec Fdtn Trust-Contract Baseline,LEARNING DIFFICULTIES,SHEFFIELD HEALTH & SOCIAL CARE NHS FOUNDATION TRUST,15716282,"41,487.00"
Department of Health,NHS Sheffield CCG,31/01/2017,Cont Care-Foundation Trust,CHC ADULT FULLY FUNDED,SHEFFIELD HEALTH & SOCIAL CARE NHS FOUNDATION TRUST,15716284,"235,291.00"
Department of Health,NHS Sheffield CCG,31/01/2017,Hcare Srv Rec Fdtn Trust-Contract Baseline,MENTAL HEALTH CONTRACTS,SHEFFIELD HEALTH & SOCIAL CARE NHS FOUNDATION TRUST,15855395,"28,761.57"
Department of Health,NHS Sheffield CCG,31/01/2017,Hcare Srv Rec Fdtn Trust-Contract Baseline,MENTAL HEALTH CONTRACTS,SHEFFIELD HEALTH & SOCIAL CARE NHS FOUNDATION TRUST,15856272,"-28,761.57"
Department of Health,NHS Sheffield CCG,31/01/2017,C&M-PMS Baseline Adjustment,PRC DELEGATED CO-COMMISSIONING,SHEFFIELD MEDICAL CENTRE,15610615,"1,302.58"
Department of Health,NHS Sheffield CCG,31/01/2017,C&M-PMS Contract Value,PRC DELEGATED CO-COMMISSIONING,SHEFFIELD MEDICAL CENTRE,15610615,"25,445.50"
Department of Health,NHS Sheffield CCG,31/01/2017,C&M-PMS Out of Hours Opt Outs,PRC DELEGATED CO-COMMISSIONING,SHEFFIELD MEDICAL CENTRE,15610615,-604
Department of Health,NHS Sheffield CCG,31/01/2017,C&M-PMS Prem Notional Rent,PRC DELEGATED CO-COMMISSIONING,SHEFFIELD MEDICAL CENTRE,15610615,"2,191.27"
Department of Health,NHS Sheffield CCG,31/01/2017,C&M-PMS Prem Rates,PRC DELEGATED CO-COMMISSIONING,SHEFFIELD MEDICAL CENTRE,15610615,859.1
Department of Health,NHS Sheffield CCG,31/01/2017,C&M-PMS QOF Aspiration,PRC DELEGATED CO-COMMISSIONING,SHEFFIELD MEDICAL CENTRE,15610615,"1,461.52"
Department of Health,NHS Sheffield CCG,31/01/2017,Hcare Srv Rec Fdtn Trust-Contract Baseline,ACUTE COMMISSIONING,SHEFFIELD TEACHING HOSPITALS NHS FOUNDATION TRUST,15590493,"27,293,145.00"
Department of Health,NHS Sheffield CCG,31/01/2017,Hcare Srv Rec Fdtn Trust-Contract Baseline,ACUTE COMMISSIONING,SHEFFIELD TEACHING HOSPITALS NHS FOUNDATION TRUST,15590500,"3,959,175.00"
Department of Health,NHS Sheffield CCG,31/01/2017,Hcare Srv Rec Fdtn Trust-Contract Baseline,ACUTE COMMISSIONING,SHEFFIELD TEACHING HOSPITALS NHS FOUNDATION TRUST,15590503,"1,027,678.00"
Department of Health,NHS Sheffield CCG,31/01/2017,Hcare Srv Rec Fdtn Trust-Contract Baseline,ACUTE COMMISSIONING,SHEFFIELD TEACHING HOSPITALS NHS FOUNDATION TRUST,15590570,"261,795.00"
Department of Health,NHS Sheffield CCG,31/01/2017,Hcare Srv Rec Fdtn Trust-Contract Baseline,ACUTE COMMISSIONING,SHEFFIELD TEACHING HOSPITALS NHS FOUNDATION TRUST,15590615,"328,758.00"
Department of Health,NHS Sheffield CCG,31/01/2017,Hcare Srv Rec Fdtn Trust-Non Contract,ACUTE COMMISSIONING,SHEFFIELD TEACHING HOSPITALS NHS FOUNDATION TRUST,15624720,"52,243.00"
Department of Health,NHS Sheffield CCG,31/01/2017,PREPYMT OVERSEAS NON EEA PATIENTS,CHC ADULT FULLY FUNDED,SHEFFIELD TEACHING HOSPITALS NHS FOUNDATION TRUST,15645488,"29,099.25"
Department of Health,NHS Sheffield CCG,31/01/2017,Hcare Srv Rec Fdtn Trust-Contract Baseline,ACUTE COMMISSIONING,SHEFFIELD TEACHING HOSPITALS NHS FOUNDATION TRUST,15716309,"56,600.00"
Department of Health,NHS Sheffield CCG,31/01/2017,Hcare Srv Rec Fdtn Trust-Contract Baseline,ACUTE COMMISSIONING,SHEFFIELD TEACHING HOSPITALS NHS FOUNDATION TRUST,15911903,"406,986.00"
Department of Health,NHS Sheffield CCG,31/01/2017,Hcare Srv Rec Fdtn Trust-Contract Baseline,ACUTE COMMISSIONING,SHEFFIELD TEACHING HOSPITALS NHS FOUNDATION TRUST,15911904,"318,894.00"
Department of Health,NHS Sheffield CCG,31/01/2017,Hcare Srv Rec Fdtn Trust-Non Contract,NCAS/OATS,SHERWOOD FOREST HOSPITALS NHS FOUNDATION TRUST,15680282,"45,543.21"
Department of Health,NHS Sheffield CCG,31/01/2017,Hcare Srv Rec Fdtn Trust-Non Contract,NCAS/OATS,SHERWOOD FOREST HOSPITALS NHS FOUNDATION TRUST,15680417,"-45,543.21"
Department of Health,NHS Sheffield CCG,31/01/2017,C&M-GMS Cost of Drugs -Prescribing,LOCAL ENHANCED SERVICES,SHIREGREEN MEDICAL CENTRE,15868036,"9,498.13"
Department of Health,NHS Sheffield CCG,31/01/2017,C&M-GMS Global Sum,PRC DELEGATED CO-COMMISSIONING,SHIREGREEN MEDICAL CENTRE,15868036,"51,822.30"
Department of Health,NHS Sheffield CCG,31/01/2017,C&M-GMS MPIG Correction Factor,PRC DELEGATED CO-COMMISSIONING,SHIREGREEN MEDICAL CENTRE,15868036,907.38
Department of Health,NHS Sheffield CCG,31/01/2017,C&M-GMS Prem Cost Rent,PRC DELEGATED CO-COMMISSIONING,SHIREGREEN MEDICAL CENTRE,15868036,"1,792.33"
Department of Health,NHS Sheffield CCG,31/01/2017,C&M-GMS Prem Notional Rent,PRC DELEGATED CO-COMMISSIONING,SHIREGREEN MEDICAL CENTRE,15868036,"5,250.00"
Department of Health,NHS Sheffield CCG,31/01/2017,C&M-GMS Prem Rates,PRC DELEGATED CO-COMMISSIONING,SHIREGREEN MEDICAL CENTRE,15868036,"2,562.63"
Department of Health,NHS Sheffield CCG,31/01/2017,C&M-GMS Prof Fees Prescribing,PRC DELEGATED CO-COMMISSIONING,SHIREGREEN MEDICAL CENTRE,15868036,"1,979.81"
Department of Health,NHS Sheffield CCG,31/01/2017,C&M-GMS QOF Aspiration,PRC DELEGATED CO-COMMISSIONING,SHIREGREEN MEDICAL CENTRE,15868036,"5,994.92"
Department of Health,NHS Sheffield CCG,31/01/2017,ME - GMS GP Prior Year ERs,PRC DELEGATED CO-COMMISSIONING,SHIREGREEN MEDICAL CENTRE,15868036,"1,962.00"
Department of Health,NHS Sheffield CCG,31/01/2017,ME-GMS GP Prior Year AVCs,PRC DELEGATED CO-COMMISSIONING,SHIREGREEN MEDICAL CENTRE,15868036,430.68
Department of Health,NHS Sheffield CCG,31/01/2017,ME-GMS GP Prior Year EEs,PRC DELEGATED CO-COMMISSIONING,SHIREGREEN MEDICAL CENTRE,15868036,"1,353.15"
Department of Health,NHS Sheffield CCG,31/01/2017,C&M-PMS Contract Value,PRC DELEGATED CO-COMMISSIONING,SLOAN MEDICAL CENTRE,15610608,"-75,956.58"
Department of Health,NHS Sheffield CCG,31/01/2017,C&M-PMS GP Statutory Levy,PRC DELEGATED CO-COMMISSIONING,SLOAN MEDICAL CENTRE,15610608,-383.94
Department of Health,NHS Sheffield CCG,31/01/2017,C&M-PMS Out of Hours Opt Outs,PRC DELEGATED CO-COMMISSIONING,SLOAN MEDICAL CENTRE,15610608,-183.82
Department of Health,NHS Sheffield CCG,31/01/2017,C&M-PMS Prem Actual Rent,PRC DELEGATED CO-COMMISSIONING,SLOAN MEDICAL CENTRE,15610608,"-1,222.50"
Department of Health,NHS Sheffield CCG,31/01/2017,C&M-PMS Voluntary Levy,PRC DELEGATED CO-COMMISSIONING,SLOAN MEDICAL CENTRE,15610608,-63.99
Department of Health,NHS Sheffield CCG,31/01/2017,ME - PMS TPS Added Years Adj EEs,PRC DELEGATED CO-COMMISSIONING,SLOAN MEDICAL CENTRE,15610608,-325.88
Department of Health,NHS Sheffield CCG,31/01/2017,C&M-PMS Baseline Adjustment,PRC DELEGATED CO-COMMISSIONING,SLOAN MEDICAL CENTRE,15610609,330.58
Department of Health,NHS Sheffield CCG,31/01/2017,C&M-PMS Contract Value,PRC DELEGATED CO-COMMISSIONING,SLOAN MEDICAL CENTRE,15610609,"161,538.64"
Department of Health,NHS Sheffield CCG,31/01/2017,C&M-PMS DES Extended Hours Access,PRC DELEGATED CO-COMMISSIONING,SLOAN MEDICAL CENTRE,15610609,"5,967.90"
Department of Health,NHS Sheffield CCG,31/01/2017,C&M-PMS Out of Hours Opt Outs,PRC DELEGATED CO-COMMISSIONING,SLOAN MEDICAL CENTRE,15610609,"-4,015.17"
Department of Health,NHS Sheffield CCG,31/01/2017,C&M-PMS Prem Actual Rent,PRC DELEGATED CO-COMMISSIONING,SLOAN MEDICAL CENTRE,15610609,"15,943.33"
Department of Health,NHS Sheffield CCG,31/01/2017,C&M-PMS Prem Notional Rent,PRC DELEGATED CO-COMMISSIONING,SLOAN MEDICAL CENTRE,15610609,608.33
Department of Health,NHS Sheffield CCG,31/01/2017,C&M-PMS Prem Rates,PRC DELEGATED CO-COMMISSIONING,SLOAN MEDICAL CENTRE,15610609,"7,017.60"
Department of Health,NHS Sheffield CCG,31/01/2017,C&M-PMS QOF Aspiration,PRC DELEGATED CO-COMMISSIONING,SLOAN MEDICAL CENTRE,15610609,"9,653.87"
Department of Health,NHS Sheffield CCG,31/01/2017,C&M-PMS Contract Value,PRC DELEGATED CO-COMMISSIONING,SOTHALL MEDICAL CENTRE,15610610,"-66,679.18"
Department of Health,NHS Sheffield CCG,31/01/2017,C&M-PMS GP Statutory Levy,PRC DELEGATED CO-COMMISSIONING,SOTHALL MEDICAL CENTRE,15610610,-307.53
Department of Health,NHS Sheffield CCG,31/01/2017,C&M-PMS Out of Hours Opt Outs,PRC DELEGATED CO-COMMISSIONING,SOTHALL MEDICAL CENTRE,15610610,-67.07
Department of Health,NHS Sheffield CCG,31/01/2017,C&M-PMS Voluntary Levy,PRC DELEGATED CO-COMMISSIONING,SOTHALL MEDICAL CENTRE,15610610,-51.26
Department of Health,NHS Sheffield CCG,31/01/2017,ME - PMS TPS Added Years Adj EEs,PRC DELEGATED CO-COMMISSIONING,SOTHALL MEDICAL CENTRE,15610610,-249.98
Department of Health,NHS Sheffield CCG,31/01/2017,C&M-PMS Baseline Adjustment,PRC DELEGATED CO-COMMISSIONING,SOTHALL MEDICAL CENTRE,15610611,"6,927.58"
Department of Health,NHS Sheffield CCG,31/01/2017,C&M-PMS Contract Value,PRC DELEGATED CO-COMMISSIONING,SOTHALL MEDICAL CENTRE,15610611,"132,728.69"
Department of Health,NHS Sheffield CCG,31/01/2017,C&M-PMS Out of Hours Opt Outs,PRC DELEGATED CO-COMMISSIONING,SOTHALL MEDICAL CENTRE,15610611,"-3,170.34"
Department of Health,NHS Sheffield CCG,31/01/2017,C&M-PMS Prem Healthcentre Rent,PRC DELEGATED CO-COMMISSIONING,SOTHALL MEDICAL CENTRE,15610611,"1,302.92"
Department of Health,NHS Sheffield CCG,31/01/2017,C&M-PMS Prem Notional Rent,PRC DELEGATED CO-COMMISSIONING,SOTHALL MEDICAL CENTRE,15610611,"5,116.67"
Department of Health,NHS Sheffield CCG,31/01/2017,C&M-PMS Prem Rates,PRC DELEGATED CO-COMMISSIONING,SOTHALL MEDICAL CENTRE,15610611,894.6
Department of Health,NHS Sheffield CCG,31/01/2017,C&M-PMS QOF Aspiration,PRC DELEGATED CO-COMMISSIONING,SOTHALL MEDICAL CENTRE,15610611,"8,054.95"
Department of Health,NHS Sheffield CCG,31/01/2017,Cont Care-Physical Disab (<65),CHC ADULT FULLY FUNDED,SOUTH YORKSHIRE HOUSING ASSOCIATION LTD,15680669,"71,886.36"
Department of Health,NHS Sheffield CCG,31/01/2017,Cont Care- Adult 100% Fully Funded,CHC ADULT FULLY FUNDED,SOUTH YORKSHIRE HOUSING ASSOCIATION LTD,15716146,"103,928.00"
Department of Health,NHS Sheffield CCG,31/01/2017,Clinical&Medical-Independent Sector,MENTAL HEALTH CONTRACTS,SOUTH YORKSHIRE HOUSING ASSOCIATION LTD,15716261,"34,435.00"
Department of Health,NHS Sheffield CCG,31/01/2017,C&M-PMS Contract Value,PRC DELEGATED CO-COMMISSIONING,SOUTHEY GREEN MEDICAL CENTRE,15610612,"-22,270.42"
Department of Health,NHS Sheffield CCG,31/01/2017,C&M-PMS GP Statutory Levy,PRC DELEGATED CO-COMMISSIONING,SOUTHEY GREEN MEDICAL CENTRE,15610612,-88.05
Department of Health,NHS Sheffield CCG,31/01/2017,C&M-PMS Out of Hours Opt Outs,PRC DELEGATED CO-COMMISSIONING,SOUTHEY GREEN MEDICAL CENTRE,15610612,-16.89
Department of Health,NHS Sheffield CCG,31/01/2017,C&M-PMS Voluntary Levy,PRC DELEGATED CO-COMMISSIONING,SOUTHEY GREEN MEDICAL CENTRE,15610612,-14.68
Department of Health,NHS Sheffield CCG,31/01/2017,C&M-PMS Baseline Adjustment,PRC DELEGATED CO-COMMISSIONING,SOUTHEY GREEN MEDICAL CENTRE,15610613,255.08
Department of Health,NHS Sheffield CCG,31/01/2017,C&M-PMS Contract Value,PRC DELEGATED CO-COMMISSIONING,SOUTHEY GREEN MEDICAL CENTRE,15610613,"46,027.33"
Department of Health,NHS Sheffield CCG,31/01/2017,C&M-PMS Out of Hours Opt Outs,PRC DELEGATED CO-COMMISSIONING,SOUTHEY GREEN MEDICAL CENTRE,15610613,"-1,142.70"
Department of Health,NHS Sheffield CCG,31/01/2017,C&M-PMS Prem Notional Rent,PRC DELEGATED CO-COMMISSIONING,SOUTHEY GREEN MEDICAL CENTRE,15610613,"3,362.50"
Department of Health,NHS Sheffield CCG,31/01/2017,C&M-PMS QOF Aspiration,PRC DELEGATED CO-COMMISSIONING,SOUTHEY GREEN MEDICAL CENTRE,15610613,"2,611.21"
Department of Health,NHS Sheffield CCG,31/01/2017,C&M-GMS Global Sum,PRC DELEGATED CO-COMMISSIONING,STANNINGTON MEDICAL CENTRE,15848132,"20,810.58"
Department of Health,NHS Sheffield CCG,31/01/2017,C&M-GMS Prem Notional Rent,PRC DELEGATED CO-COMMISSIONING,STANNINGTON MEDICAL CENTRE,15848132,"2,533.33"
Department of Health,NHS Sheffield CCG,31/01/2017,C&M-GMS Prem Rates,PRC DELEGATED CO-COMMISSIONING,STANNINGTON MEDICAL CENTRE,15848132,450.12
Department of Health,NHS Sheffield CCG,31/01/2017,C&M-GMS QOF Aspiration,PRC DELEGATED CO-COMMISSIONING,STANNINGTON MEDICAL CENTRE,15848132,"2,958.00"
Department of Health,NHS Sheffield CCG,31/01/2017,C&M-GMS Cost of Drugs -Prescribing,LOCAL ENHANCED SERVICES,STONECROFT MEDICAL CENTRE,15848130,"3,361.96"
Department of Health,NHS Sheffield CCG,31/01/2017,C&M-GMS Global Sum,PRC DELEGATED CO-COMMISSIONING,STONECROFT MEDICAL CENTRE,15848130,"27,698.90"
Department of Health,NHS Sheffield CCG,31/01/2017,C&M-GMS MPIG Correction Factor,PRC DELEGATED CO-COMMISSIONING,STONECROFT MEDICAL CENTRE,15848130,"1,236.50"
Department of Health,NHS Sheffield CCG,31/01/2017,C&M-GMS Prem Notional Rent,PRC DELEGATED CO-COMMISSIONING,STONECROFT MEDICAL CENTRE,15848130,"2,808.33"
Department of Health,NHS Sheffield CCG,31/01/2017,C&M-GMS Prem Rates,PRC DELEGATED CO-COMMISSIONING,STONECROFT MEDICAL CENTRE,15848130,969.15
Department of Health,NHS Sheffield CCG,31/01/2017,C&M-GMS Prof Fees Prescribing,PRC DELEGATED CO-COMMISSIONING,STONECROFT MEDICAL CENTRE,15848130,"1,079.85"
Department of Health,NHS Sheffield CCG,31/01/2017,C&M-GMS QOF Aspiration,PRC DELEGATED CO-COMMISSIONING,STONECROFT MEDICAL CENTRE,15848130,"3,829.15"
Department of Health,NHS Sheffield CCG,31/01/2017,Clinical&Medical-Independent Sector,MENTAL HEALTH CONTRACTS,SUSASH GB LTD T/A EAGLE HOUSE,15716194,"30,092.00"
Department of Health,NHS Sheffield CCG,31/01/2017,C&M-GMS Cost of Drugs -Prescribing,LOCAL ENHANCED SERVICES,TOTLEY RISE MEDICAL CENTRE,15848134,934.7
Department of Health,NHS Sheffield CCG,31/01/2017,C&M-GMS Global Sum,PRC DELEGATED CO-COMMISSIONING,TOTLEY RISE MEDICAL CENTRE,15848134,"20,429.39"
Department of Health,NHS Sheffield CCG,31/01/2017,C&M-GMS MPIG Correction Factor,PRC DELEGATED CO-COMMISSIONING,TOTLEY RISE MEDICAL CENTRE,15848134,206.27
Department of Health,NHS Sheffield CCG,31/01/2017,C&M-GMS Prem Notional Rent,PRC DELEGATED CO-COMMISSIONING,TOTLEY RISE MEDICAL CENTRE,15848134,"1,491.67"
Department of Health,NHS Sheffield CCG,31/01/2017,C&M-GMS Prem Rates,PRC DELEGATED CO-COMMISSIONING,TOTLEY RISE MEDICAL CENTRE,15848134,131.8
Department of Health,NHS Sheffield CCG,31/01/2017,C&M-GMS Prof Fees Prescribing,PRC DELEGATED CO-COMMISSIONING,TOTLEY RISE MEDICAL CENTRE,15848134,226.07
Department of Health,NHS Sheffield CCG,31/01/2017,C&M-GMS QOF Aspiration,PRC DELEGATED CO-COMMISSIONING,TOTLEY RISE MEDICAL CENTRE,15848134,"2,064.44"
Department of Health,NHS Sheffield CCG,31/01/2017,C&M-GMS Cost of Drugs -Prescribing,LOCAL ENHANCED SERVICES,TRAMWAYS MEDICAL CENTRE,15848136,"2,476.48"
Department of Health,NHS Sheffield CCG,31/01/2017,C&M-GMS DES Minor Surgery,PRC DELEGATED CO-COMMISSIONING,TRAMWAYS MEDICAL CENTRE,15848136,"3,100.00"
Department of Health,NHS Sheffield CCG,31/01/2017,C&M-GMS Global Sum,PRC DELEGATED CO-COMMISSIONING,TRAMWAYS MEDICAL CENTRE,15848136,"55,249.68"
Department of Health,NHS Sheffield CCG,31/01/2017,C&M-GMS Prem Cost Rent,PRC DELEGATED CO-COMMISSIONING,TRAMWAYS MEDICAL CENTRE,15848136,"4,012.75"
Department of Health,NHS Sheffield CCG,31/01/2017,C&M-GMS Prem Rates,PRC DELEGATED CO-COMMISSIONING,TRAMWAYS MEDICAL CENTRE,15848136,774.4
Department of Health,NHS Sheffield CCG,31/01/2017,C&M-GMS Prof Fees Prescribing,PRC DELEGATED CO-COMMISSIONING,TRAMWAYS MEDICAL CENTRE,15848136,663.8
Department of Health,NHS Sheffield CCG,31/01/2017,C&M-GMS QOF Aspiration,PRC DELEGATED CO-COMMISSIONING,TRAMWAYS MEDICAL CENTRE,15848136,"5,763.61"
Department of Health,NHS Sheffield CCG,31/01/2017,C&M-PMS Contract Value,PRC DELEGATED CO-COMMISSIONING,UNIVERSITY HEALTH SERVICE,15610616,"-124,234.04"
Department of Health,NHS Sheffield CCG,31/01/2017,C&M-PMS GP Statutory Levy,PRC DELEGATED CO-COMMISSIONING,UNIVERSITY HEALTH SERVICE,15610616,-940.71
Department of Health,NHS Sheffield CCG,31/01/2017,C&M-PMS Out of Hours Opt Outs,PRC DELEGATED CO-COMMISSIONING,UNIVERSITY HEALTH SERVICE,15610616,-923.5
Department of Health,NHS Sheffield CCG,31/01/2017,C&M-PMS Voluntary Levy,PRC DELEGATED CO-COMMISSIONING,UNIVERSITY HEALTH SERVICE,15610616,-156.79
Department of Health,NHS Sheffield CCG,31/01/2017,C&M-PMS Contract Value,PRC DELEGATED CO-COMMISSIONING,UNIVERSITY HEALTH SERVICE,15610617,"263,951.10"
Department of Health,NHS Sheffield CCG,31/01/2017,C&M-PMS Out of Hours Opt Outs,PRC DELEGATED CO-COMMISSIONING,UNIVERSITY HEALTH SERVICE,15610617,"-6,163.37"
Department of Health,NHS Sheffield CCG,31/01/2017,C&M-PMS Prem Notional Rent,PRC DELEGATED CO-COMMISSIONING,UNIVERSITY HEALTH SERVICE,15610617,"15,833.33"
Department of Health,NHS Sheffield CCG,31/01/2017,C&M-PMS QOF Aspiration,PRC DELEGATED CO-COMMISSIONING,UNIVERSITY HEALTH SERVICE,15610617,"2,932.96"
Department of Health,NHS Sheffield CCG,31/01/2017,C&M-GMS Prem Actual Rent,PRC DELEGATED CO-COMMISSIONING,UPPERTHORPE MEDICAL CENTRE,15598042,"29,475.00"
Department of Health,NHS Sheffield CCG,31/01/2017,C&M-GMS GP Statutory Levy,PRC DELEGATED CO-COMMISSIONING,UPPERTHORPE MEDICAL CENTRE,15848138,-336.15
Department of Health,NHS Sheffield CCG,31/01/2017,C&M-GMS Prem Actual Rent,PRC DELEGATED CO-COMMISSIONING,UPPERTHORPE MEDICAL CENTRE,15848138,"-29,475.00"
Department of Health,NHS Sheffield CCG,31/01/2017,C&M-GMS Voluntary Levy,PRC DELEGATED CO-COMMISSIONING,UPPERTHORPE MEDICAL CENTRE,15848138,-56.03
Department of Health,NHS Sheffield CCG,31/01/2017,C&M-GMS Cost of Drugs -Prescribing,LOCAL ENHANCED SERVICES,UPPERTHORPE MEDICAL CENTRE,15848139,"4,797.72"
Department of Health,NHS Sheffield CCG,31/01/2017,C&M-GMS Global Sum,PRC DELEGATED CO-COMMISSIONING,UPPERTHORPE MEDICAL CENTRE,15848139,"73,074.65"
Department of Health,NHS Sheffield CCG,31/01/2017,C&M-GMS MPIG Correction Factor,PRC DELEGATED CO-COMMISSIONING,UPPERTHORPE MEDICAL CENTRE,15848139,"2,651.47"
Department of Health,NHS Sheffield CCG,31/01/2017,C&M-GMS Prem Actual Rent,PRC DELEGATED CO-COMMISSIONING,UPPERTHORPE MEDICAL CENTRE,15848139,"29,475.00"
Department of Health,NHS Sheffield CCG,31/01/2017,C&M-GMS Prem Notional Rent,PRC DELEGATED CO-COMMISSIONING,UPPERTHORPE MEDICAL CENTRE,15848139,"2,497.83"
Department of Health,NHS Sheffield CCG,31/01/2017,C&M-GMS Prem Rates,PRC DELEGATED CO-COMMISSIONING,UPPERTHORPE MEDICAL CENTRE,15848139,"1,857.65"
Department of Health,NHS Sheffield CCG,31/01/2017,C&M-GMS Prem Water Rates,PRC DELEGATED CO-COMMISSIONING,UPPERTHORPE MEDICAL CENTRE,15848139,120.14
Department of Health,NHS Sheffield CCG,31/01/2017,C&M-GMS Prof Fees Prescribing,PRC DELEGATED CO-COMMISSIONING,UPPERTHORPE MEDICAL CENTRE,15848139,"1,190.48"
Department of Health,NHS Sheffield CCG,31/01/2017,C&M-GMS QOF Aspiration,PRC DELEGATED CO-COMMISSIONING,UPPERTHORPE MEDICAL CENTRE,15848139,"8,458.19"
Department of Health,NHS Sheffield CCG,31/01/2017,C&M-PMS Contract Value,PRC DELEGATED CO-COMMISSIONING,UPWELL STREET SURGERY,15610618,"-37,914.78"
Department of Health,NHS Sheffield CCG,31/01/2017,C&M-PMS GP Statutory Levy,PRC DELEGATED CO-COMMISSIONING,UPWELL STREET SURGERY,15610618,-145.74
Department of Health,NHS Sheffield CCG,31/01/2017,C&M-PMS Out of Hours Opt Outs,PRC DELEGATED CO-COMMISSIONING,UPWELL STREET SURGERY,15610618,-25.34
Department of Health,NHS Sheffield CCG,31/01/2017,C&M-PMS Voluntary Levy,PRC DELEGATED CO-COMMISSIONING,UPWELL STREET SURGERY,15610618,-24.29
Department of Health,NHS Sheffield CCG,31/01/2017,ME - PMS TPS Added Years Adj EEs,PRC DELEGATED CO-COMMISSIONING,UPWELL STREET SURGERY,15610618,-710.01
Department of Health,NHS Sheffield CCG,31/01/2017,C&M-PMS Baseline Adjustment,PRC DELEGATED CO-COMMISSIONING,UPWELL STREET SURGERY,15610619,"4,009.00"
Department of Health,NHS Sheffield CCG,31/01/2017,C&M-PMS Contract Value,PRC DELEGATED CO-COMMISSIONING,UPWELL STREET SURGERY,15610619,"72,939.71"
Department of Health,NHS Sheffield CCG,31/01/2017,C&M-PMS Out of Hours Opt Outs,PRC DELEGATED CO-COMMISSIONING,UPWELL STREET SURGERY,15610619,"-1,681.47"
Department of Health,NHS Sheffield CCG,31/01/2017,C&M-PMS Prem Notional Rent,PRC DELEGATED CO-COMMISSIONING,UPWELL STREET SURGERY,15610619,"8,137.50"
Department of Health,NHS Sheffield CCG,31/01/2017,C&M-PMS Prem Rates,PRC DELEGATED CO-COMMISSIONING,UPWELL STREET SURGERY,15610619,880.1
Department of Health,NHS Sheffield CCG,31/01/2017,C&M-PMS QOF Aspiration,PRC DELEGATED CO-COMMISSIONING,UPWELL STREET SURGERY,15610619,"4,428.32"
Department of Health,NHS Sheffield CCG,31/01/2017,C&M-PMS Contract Value,PRC DELEGATED CO-COMMISSIONING,VALLEY MEDICAL CENTRE,15610620,"-64,140.88"
Department of Health,NHS Sheffield CCG,31/01/2017,C&M-PMS GP Statutory Levy,PRC DELEGATED CO-COMMISSIONING,VALLEY MEDICAL CENTRE,15610620,-285.81
Department of Health,NHS Sheffield CCG,31/01/2017,C&M-PMS Out of Hours Opt Outs,PRC DELEGATED CO-COMMISSIONING,VALLEY MEDICAL CENTRE,15610620,-91.6
Department of Health,NHS Sheffield CCG,31/01/2017,C&M-PMS Voluntary Levy,PRC DELEGATED CO-COMMISSIONING,VALLEY MEDICAL CENTRE,15610620,-47.64
Department of Health,NHS Sheffield CCG,31/01/2017,ME - PMS TPS Added Years Adj EEs,PRC DELEGATED CO-COMMISSIONING,VALLEY MEDICAL CENTRE,15610620,-237.26
Department of Health,NHS Sheffield CCG,31/01/2017,C&M-PMS Baseline Adjustment,PRC DELEGATED CO-COMMISSIONING,VALLEY MEDICAL CENTRE,15610621,542.25
Department of Health,NHS Sheffield CCG,31/01/2017,C&M-PMS Contract Value,PRC DELEGATED CO-COMMISSIONING,VALLEY MEDICAL CENTRE,15610621,"134,721.07"
Department of Health,NHS Sheffield CCG,31/01/2017,C&M-PMS Out of Hours Opt Outs,PRC DELEGATED CO-COMMISSIONING,VALLEY MEDICAL CENTRE,15610621,"-3,364.05"
Department of Health,NHS Sheffield CCG,31/01/2017,C&M-PMS Prem Rates,PRC DELEGATED CO-COMMISSIONING,VALLEY MEDICAL CENTRE,15610621,969.15
Department of Health,NHS Sheffield CCG,31/01/2017,C&M-PMS QOF Aspiration,PRC DELEGATED CO-COMMISSIONING,VALLEY MEDICAL CENTRE,15610621,"8,284.48"
Department of Health,NHS Sheffield CCG,31/01/2017,C&M-GMS Cost of Drugs -Prescribing,LOCAL ENHANCED SERVICES,WALKLEY HOUSE MEDICAL CENTRE,15848145,"6,746.98"
Department of Health,NHS Sheffield CCG,31/01/2017,C&M-GMS Global Sum,PRC DELEGATED CO-COMMISSIONING,WALKLEY HOUSE MEDICAL CENTRE,15848145,"72,685.39"
Department of Health,NHS Sheffield CCG,31/01/2017,C&M-GMS Prem Notional Rent,PRC DELEGATED CO-COMMISSIONING,WALKLEY HOUSE MEDICAL CENTRE,15848145,"5,581.34"
Department of Health,NHS Sheffield CCG,31/01/2017,C&M-GMS Prem Rates,PRC DELEGATED CO-COMMISSIONING,WALKLEY HOUSE MEDICAL CENTRE,15848145,"1,217.65"
Department of Health,NHS Sheffield CCG,31/01/2017,C&M-GMS Prof Fees Prescribing,PRC DELEGATED CO-COMMISSIONING,WALKLEY HOUSE MEDICAL CENTRE,15848145,"2,017.81"
Department of Health,NHS Sheffield CCG,31/01/2017,C&M-GMS QOF Aspiration,PRC DELEGATED CO-COMMISSIONING,WALKLEY HOUSE MEDICAL CENTRE,15848145,"8,133.06"
Department of Health,NHS Sheffield CCG,31/01/2017,C&M-GMS Cost of Drugs -Prescribing,LOCAL ENHANCED SERVICES,WHITE HOUSE SURGERY SHEFFIELD,15848143,"2,416.11"
Department of Health,NHS Sheffield CCG,31/01/2017,C&M-GMS DES Learn Dsblty Hlth Chk,PRC DELEGATED CO-COMMISSIONING,WHITE HOUSE SURGERY SHEFFIELD,15848143,812
Department of Health,NHS Sheffield CCG,31/01/2017,C&M-GMS Global Sum,PRC DELEGATED CO-COMMISSIONING,WHITE HOUSE SURGERY SHEFFIELD,15848143,"44,209.32"
Department of Health,NHS Sheffield CCG,31/01/2017,C&M-GMS MPIG Correction Factor,PRC DELEGATED CO-COMMISSIONING,WHITE HOUSE SURGERY SHEFFIELD,15848143,"2,782.59"
Department of Health,NHS Sheffield CCG,31/01/2017,C&M-GMS Prem Notional Rent,PRC DELEGATED CO-COMMISSIONING,WHITE HOUSE SURGERY SHEFFIELD,15848143,"9,104.17"
Department of Health,NHS Sheffield CCG,31/01/2017,C&M-GMS Prem Rates,PRC DELEGATED CO-COMMISSIONING,WHITE HOUSE SURGERY SHEFFIELD,15848143,"1,801.64"
Department of Health,NHS Sheffield CCG,31/01/2017,C&M-GMS Prof Fees Prescribing,PRC DELEGATED CO-COMMISSIONING,WHITE HOUSE SURGERY SHEFFIELD,15848143,784.04
Department of Health,NHS Sheffield CCG,31/01/2017,C&M-GMS QOF Aspiration,PRC DELEGATED CO-COMMISSIONING,WHITE HOUSE SURGERY SHEFFIELD,15848143,"5,341.68"
Department of Health,NHS Sheffield CCG,31/01/2017,Cont Care-Physical Disab (<65),CHC ADULT FULLY FUNDED,WILLOWBECK HEALTH CARE LTD,15680764,"172,876.20"
Department of Health,NHS Sheffield CCG,31/01/2017,C&M-PMS Contract Value,PRC DELEGATED CO-COMMISSIONING,WINCOBANK MEDICAL CENTRE,15610624,"-48,960.67"
Department of Health,NHS Sheffield CCG,31/01/2017,C&M-PMS GP Statutory Levy,PRC DELEGATED CO-COMMISSIONING,WINCOBANK MEDICAL CENTRE,15610624,-223.26
Department of Health,NHS Sheffield CCG,31/01/2017,C&M-PMS Out of Hours Opt Outs,PRC DELEGATED CO-COMMISSIONING,WINCOBANK MEDICAL CENTRE,15610624,-122.98
Department of Health,NHS Sheffield CCG,31/01/2017,C&M-PMS Voluntary Levy,PRC DELEGATED CO-COMMISSIONING,WINCOBANK MEDICAL CENTRE,15610624,-37.21
Department of Health,NHS Sheffield CCG,31/01/2017,C&M-PMS Baseline Adjustment,PRC DELEGATED CO-COMMISSIONING,WINCOBANK MEDICAL CENTRE,15610625,19.92
Department of Health,NHS Sheffield CCG,31/01/2017,C&M-PMS Contract Value,PRC DELEGATED CO-COMMISSIONING,WINCOBANK MEDICAL CENTRE,15610625,"104,415.43"
Department of Health,NHS Sheffield CCG,31/01/2017,C&M-PMS DES UNPLANNED ADMISSIONS,PRC DELEGATED CO-COMMISSIONING,WINCOBANK MEDICAL CENTRE,15610625,"5,614.84"
Department of Health,NHS Sheffield CCG,31/01/2017,C&M-PMS Out of Hours Opt Outs,PRC DELEGATED CO-COMMISSIONING,WINCOBANK MEDICAL CENTRE,15610625,"-2,593.58"
Department of Health,NHS Sheffield CCG,31/01/2017,C&M-PMS Prem Healthcentre Rent,PRC DELEGATED CO-COMMISSIONING,WINCOBANK MEDICAL CENTRE,15610625,"40,840.62"
Department of Health,NHS Sheffield CCG,31/01/2017,C&M-PMS QOF Aspiration,PRC DELEGATED CO-COMMISSIONING,WINCOBANK MEDICAL CENTRE,15610625,"6,279.11"
Department of Health,NHS Sheffield CCG,31/01/2017,C&M-PMS Contract Value,PRC DELEGATED CO-COMMISSIONING,WOODHOUSE HEALTH CENTRE,15610622,"-89,176.40"
Department of Health,NHS Sheffield CCG,31/01/2017,C&M-PMS GP Statutory Levy,PRC DELEGATED CO-COMMISSIONING,WOODHOUSE HEALTH CENTRE,15610622,-367.23
Department of Health,NHS Sheffield CCG,31/01/2017,C&M-PMS Out of Hours Opt Outs,PRC DELEGATED CO-COMMISSIONING,WOODHOUSE HEALTH CENTRE,15610622,-72.98
Department of Health,NHS Sheffield CCG,31/01/2017,C&M-PMS Voluntary Levy,PRC DELEGATED CO-COMMISSIONING,WOODHOUSE HEALTH CENTRE,15610622,-61.21
Department of Health,NHS Sheffield CCG,31/01/2017,ME - PMS TPS Added Years Adj EEs,PRC DELEGATED CO-COMMISSIONING,WOODHOUSE HEALTH CENTRE,15610622,-826.25
Department of Health,NHS Sheffield CCG,31/01/2017,C&M-PMS Baseline Adjustment,PRC DELEGATED CO-COMMISSIONING,WOODHOUSE HEALTH CENTRE,15610623,"5,552.58"
Department of Health,NHS Sheffield CCG,31/01/2017,C&M-PMS Contract Value,PRC DELEGATED CO-COMMISSIONING,WOODHOUSE HEALTH CENTRE,15610623,"180,559.41"
Department of Health,NHS Sheffield CCG,31/01/2017,C&M-PMS Out of Hours Opt Outs,PRC DELEGATED CO-COMMISSIONING,WOODHOUSE HEALTH CENTRE,15610623,"-4,394.46"
Department of Health,NHS Sheffield CCG,31/01/2017,C&M-PMS Prem Notional Rent,PRC DELEGATED CO-COMMISSIONING,WOODHOUSE HEALTH CENTRE,15610623,"6,338.59"
Department of Health,NHS Sheffield CCG,31/01/2017,C&M-PMS Prem Rates,PRC DELEGATED CO-COMMISSIONING,WOODHOUSE HEALTH CENTRE,15610623,"1,080.99"
Department of Health,NHS Sheffield CCG,31/01/2017,C&M-PMS QOF Aspiration,PRC DELEGATED CO-COMMISSIONING,WOODHOUSE HEALTH CENTRE,15610623,"13,394.35"
Department of Health,NHS Sheffield CCG,31/01/2017,C&M-PMS Contract Value,PRC DELEGATED CO-COMMISSIONING,WOODSEATS MEDICAL CENTRE,15637045,"-55,148.92"
Department of Health,NHS Sheffield CCG,31/01/2017,C&M-PMS GP Statutory Levy,PRC DELEGATED CO-COMMISSIONING,WOODSEATS MEDICAL CENTRE,15637045,-272.61
Department of Health,NHS Sheffield CCG,31/01/2017,C&M-PMS Out of Hours Opt Outs,PRC DELEGATED CO-COMMISSIONING,WOODSEATS MEDICAL CENTRE,15637045,-115.28
Department of Health,NHS Sheffield CCG,31/01/2017,C&M-PMS Voluntary Levy,PRC DELEGATED CO-COMMISSIONING,WOODSEATS MEDICAL CENTRE,15637045,-45.44
Department of Health,NHS Sheffield CCG,31/01/2017,ME - PMS GP Prior Year ERs,PRC DELEGATED CO-COMMISSIONING,WOODSEATS MEDICAL CENTRE,15637045,"-2,914.17"
Department of Health,NHS Sheffield CCG,31/01/2017,ME - PMS TPS Added Years Adj EEs,PRC DELEGATED CO-COMMISSIONING,WOODSEATS MEDICAL CENTRE,15637045,-307.86
Department of Health,NHS Sheffield CCG,31/01/2017,ME-PMS GP Prior Year AVCs,PRC DELEGATED CO-COMMISSIONING,WOODSEATS MEDICAL CENTRE,15637045,-182.64
Department of Health,NHS Sheffield CCG,31/01/2017,ME-PMS GP Prior Year EEs,PRC DELEGATED CO-COMMISSIONING,WOODSEATS MEDICAL CENTRE,15637045,"-1,772.92"
Department of Health,NHS Sheffield CCG,31/01/2017,C&M-PMS Baseline Adjustment,PRC DELEGATED CO-COMMISSIONING,WOODSEATS MEDICAL CENTRE,15637046,794.17
Department of Health,NHS Sheffield CCG,31/01/2017,C&M-PMS Contract Value,PRC DELEGATED CO-COMMISSIONING,WOODSEATS MEDICAL CENTRE,15637046,"116,330.62"
Department of Health,NHS Sheffield CCG,31/01/2017,C&M-PMS Out of Hours Opt Outs,PRC DELEGATED CO-COMMISSIONING,WOODSEATS MEDICAL CENTRE,15637046,"-2,886.33"
Department of Health,NHS Sheffield CCG,31/01/2017,C&M-PMS Prem Notional Rent,PRC DELEGATED CO-COMMISSIONING,WOODSEATS MEDICAL CENTRE,15637046,"3,578.92"
Department of Health,NHS Sheffield CCG,31/01/2017,C&M-PMS Prem Rates,PRC DELEGATED CO-COMMISSIONING,WOODSEATS MEDICAL CENTRE,15637046,"1,379.18"
Department of Health,NHS Sheffield CCG,31/01/2017,C&M-PMS QOF Aspiration,PRC DELEGATED CO-COMMISSIONING,WOODSEATS MEDICAL CENTRE,15637046,"7,370.55"
Department of Health,NHS Sheffield CCG,31/01/2017,ME - PMS GP Prior Year ERs,PRC DELEGATED CO-COMMISSIONING,WOODSEATS MEDICAL CENTRE,15637046,"2,430.99"
Department of Health,NHS Sheffield CCG,31/01/2017,ME-PMS GP Prior Year AVCs,PRC DELEGATED CO-COMMISSIONING,WOODSEATS MEDICAL CENTRE,15637046,923.1
Department of Health,NHS Sheffield CCG,31/01/2017,ME-PMS GP Prior Year EEs,PRC DELEGATED CO-COMMISSIONING,WOODSEATS MEDICAL CENTRE,15637046,"2,295.00"
Department of Health,NHS Sheffield CCG,31/01/2017,Hcare Srv Rec NHS Trust-CQUIN,AMBULANCE SERVICES,YORKSHIRE AMBULANCE SERVICE NHS TRUST,15590580,"30,163.00"
Department of Health,NHS Sheffield CCG,31/01/2017,Hcare Srv Rec NHS Trust-Contract Baseline,PATIENT TRANSPORT,YORKSHIRE AMBULANCE SERVICE NHS TRUST,15590585,"167,223.60"
Department of Health,NHS Sheffield CCG,31/01/2017,Hcare Srv Rec NHS Trust-Contract Baseline,AMBULANCE SERVICES,YORKSHIRE AMBULANCE SERVICE NHS TRUST,15590590,"1,393,177.00"
Department of Health,NHS Sheffield CCG,31/01/2017,Hcare Srv Rec NHS Trust-Contract Baseline,AMBULANCE SERVICES,YORKSHIRE AMBULANCE SERVICE NHS TRUST,15590597,"122,502.08"
Department of Health,NHS Sheffield CCG,31/01/2017,Hcare Srv Rec NHS Trust-Contract Baseline,NHS 111,YORKSHIRE AMBULANCE SERVICE NHS TRUST,15590601,"89,944.26"
,,,,,,,"55,874,422.97"
